Workbook

Sheet Front page
E3: Decision Making
E4: in
E5: Physical Asset Management
E8: Rui Assis
E9: 2012-08-19
E10: rassis46@gmail.com
E11: http://www.rassis.com
E13: Repairable serial system
E15: Blue cells for data, green cells for intermediate calculus and yellow cells for results

Sheet Serial system
B2: t0 = | C2: 400 | E2: 850 | G2: 950 | I2: 500 | K2: 50 | M2: 350 | P2: Mission
B3: a = | C3: 5 | E3: 4 | G3: 2.5 | I3: 3.5 | K3: 3 | M3: 4 | P3: 100
B4: b = | C4: 3550 | E4: 1300 | G4: 3800 | I4: 4100 | K4: 4570 | M4: 2100
B6: mX = | C6: 10 | E6: 10 | G6: 10 | I6: 10 | K6: 10 | M6: 10
B7: sX = | C7: 0.8 | E7: 0.8 | G7: 0.8 | I7: 0.8 | K7: 0.8 | M7: 0.8
B8: my = | C8: =IF(C6="","",LN(C6)-C9^2/2) -> 2.29939529 | E8: =IF(E6="","",LN(E6)-E9^2/2) -> 2.29939529 | G8: =IF(G6="","",LN(G6)-G9^2/2) -> 2.29939529 | I8: =IF(I6="","",LN(I6)-I9^2/2) -> 2.29939529 | K8: =IF(K6="","",LN(K6)-K9^2/2) -> 2.29939529 | M8: =IF(M6="","",LN(M6)-M9^2/2) -> 2.29939529 | P8: System
B9: sy = | C9: =IF(C7="","",SQRT(LN(C7^2/C6^2+1))) -> 0.07987244183 | E9: =IF(E7="","",SQRT(LN(E7^2/E6^2+1))) -> 0.07987244183 | G9: =IF(G7="","",SQRT(LN(G7^2/G6^2+1))) -> 0.07987244183 | I9: =IF(I7="","",SQRT(LN(I7^2/I6^2+1))) -> 0.07987244183 | K9: =IF(K7="","",SQRT(LN(K7^2/K6^2+1))) -> 0.07987244183 | M9: =IF(M7="","",SQRT(LN(M7^2/M6^2+1))) -> 0.07987244183 | P9: Analytical method | R9: MC simulation
C10: A | E10: B | G10: C | I10: D | K10: E | M10: F
B11: MTTF = | C11: =IF(OR(C$3="",C$4=""),"",ROUND(C2+C4*EXP(GAMMALN(1+1/C3)),0)) -> 3659 | E11: =IF(OR(E$3="",E$4=""),"",ROUND(E2+E4*EXP(GAMMALN(1+1/E3)),0)) -> 2028 | G11: =IF(OR(G$3="",G$4=""),"",ROUND(G2+G4*EXP(GAMMALN(1+1/G3)),0)) -> 4322 | I11: =IF(OR(I$3="",I$4=""),"",ROUND(I2+I4*EXP(GAMMALN(1+1/I3)),0)) -> 4189 | K11: =IF(OR(K$3="",K$4=""),"",ROUND(K2+K4*EXP(GAMMALN(1+1/K3)),0)) -> 4131 | M11: =IF(OR(M$3="",M$4=""),"",ROUND(M2+M4*EXP(GAMMALN(1+1/M3)),0)) -> 2253 | O11: MTTF = | P11: =1/P12 -> 520.1790557 | Q11: MTTF = | R11: =ROUND(AVERAGE(P30:P519),0) -> 519
B12: Freq. = | C12: =IF(OR(C$3="",C$4=""),"",1/C11) -> 0.0002732987155 | E12: =IF(OR(E$3="",E$4=""),"",1/E11) -> 0.0004930966469 | G12: =IF(OR(G$3="",G$4=""),"",1/G11) -> 0.0002313743637 | I12: =IF(OR(I$3="",I$4=""),"",1/I11) -> 0.0002387204583 | K12: =IF(OR(K$3="",K$4=""),"",1/K11) -> 0.0002420721375 | M12: =IF(OR(M$3="",M$4=""),"",1/M11) -> 0.0004438526409 | O12: Freq. = | P12: =SUM(C12:M12) -> 0.001922414963 | Q12: Freq. = | R12: =1/R11 -> 0.001926782274
B13: R = | C13: =IF(OR(C$3="",C$4=""),"",IF(C2>$P$3,1,1-WEIBULL($P$3-C2,C3,C4,1))) -> 1 | E13: =IF(OR(E$3="",E$4=""),"",IF(E2>$P$3,1,1-WEIBULL($P$3-E2,E3,E4,1))) -> 1 | G13: =IF(OR(G$3="",G$4=""),"",IF(G2>$P$3,1,1-WEIBULL($P$3-G2,G3,G4,1))) -> 1 | I13: =IF(OR(I$3="",I$4=""),"",IF(I2>$P$3,1,1-WEIBULL($P$3-I2,I3,I4,1))) -> 1 | K13: =IF(OR(K$3="",K$4=""),"",IF(K2>$P$3,1,1-WEIBULL($P$3-K2,K3,K4,1))) -> 0.9999986903 | M13: =IF(OR(M$3="",M$4=""),"",IF(M2>$P$3,1,1-WEIBULL($P$3-M2,M3,M4,1))) -> 1 | O13: R = | P13: =EXP(-P3/P11) -> 0.825107584 | Q13: R = | R13: =1-SUM(AE30:AE519)/490 -> 0.8469387755
B15: MTTR = | C15: =IF(OR(C$3="",C$4=""),"",EXP(C8+C9^2/2)) -> 10 | E15: =IF(OR(E$3="",E$4=""),"",EXP(E8+E9^2/2)) -> 10 | G15: =IF(OR(G$3="",G$4=""),"",EXP(G8+G9^2/2)) -> 10 | I15: =IF(OR(I$3="",I$4=""),"",EXP(I8+I9^2/2)) -> 10 | K15: =IF(OR(K$3="",K$4=""),"",EXP(K8+K9^2/2)) -> 10 | M15: =IF(OR(M$3="",M$4=""),"",EXP(M8+M9^2/2)) -> 10 | O15: MTTR = | P15: =SUMPRODUCT(C15:M15,C12:M12)/P12 -> 10 | Q15: MTTR = | R15: =AVERAGE(Q30:Q519) -> 9.970632453
B16: A = | C16: =IF(OR(C$3="",C$4=""),"",C11/(C11+C15)) -> 0.9972744617 | E16: =IF(OR(E$3="",E$4=""),"",E11/(E11+E15)) -> 0.9950932287 | G16: =IF(OR(G$3="",G$4=""),"",G11/(G11+G15)) -> 0.9976915974 | I16: =IF(OR(I$3="",I$4=""),"",I11/(I11+I15)) -> 0.9976184806 | K16: =IF(OR(K$3="",K$4=""),"",K11/(K11+K15)) -> 0.9975851244 | M16: =IF(OR(M$3="",M$4=""),"",M11/(M11+M15)) -> 0.9955810871 | O16: A = | P16: =P11/(P11+P15) -> 0.9811384477 | Q16: A = | R16: =SUM(P30:P519)/(SUM(Q30:Q519)+SUM(P30:P519)) -> 0.9811644604
C18: Moments of failure of each component | O18: System failures | S18: Remaining life of each component | AE18: Mission
C19: A | E19: B | G19: C | I19: D | K19: E | M19: F | O19: Comp. | P19: TTF | Q19: TTR | S19: A | U19: B | W19: C | Y19: D | AA19: E | AC19: F | AE19: failed?
A20: 1 | C20: =IF(OR(C$3="",C$4=""),"",C$2+C$4*(LN(1/(1-RAND())))^(1/C$3)) -> 3979.155476 | E20: =IF(OR(E$3="",E$4=""),"",E$2+E$4*(LN(1/(1-RAND())))^(1/E$3)) -> 1757.134784 | G20: =IF(OR(G$3="",G$4=""),"",G$2+G$4*(LN(1/(1-RAND())))^(1/G$3)) -> 4355.1352 | I20: =IF(OR(I$3="",I$4=""),"",I$2+I$4*(LN(1/(1-RAND())))^(1/I$3)) -> 4499.766828 | K20: =IF(OR(K$3="",K$4=""),"",K$2+K$4*(LN(1/(1-RAND())))^(1/K$3)) -> 3409.203515 | M20: =IF(OR(M$3="",M$4=""),"",M$2+M$4*(LN(1/(1-RAND())))^(1/M$3)) -> 2588.369389 | O20: =HLOOKUP(P20,C20:$M$520,A520,0) -> B | P20: =MIN(C20:M20) -> 1757.134784 | Q20: =IF(O20=C$19,EXP(NORMINV(RAND(),C$8,C$9)),IF(O20=E$19,EXP(NORMINV(RAND(),E$8,E$9)),IF(O20=G$19,EXP(NORMINV(RAND(),G$8,G$9)),IF(O20=I$19,EXP(NORMINV(RAND(),I$8,I$9)),IF(O20=K$19,EXP(NORMINV(RAND(),K$8,K$9)),IF(O20=M$19,EXP(NORMINV(RAND(),M$8,M$9)))))))) -> 10.36338506 | S20: =IF(OR(C$3="",C$4=""),"",IF($O20=S$19,0,C20-$P20)) -> 2222.020693 | U20: =IF(OR(E$3="",E$4=""),"",IF($O20=U$19,0,E20-$P20)) -> 0 | W20: =IF(OR(G$3="",G$4=""),"",IF($O20=W$19,0,G20-$P20)) -> 2598.000417 | Y20: =IF(OR(I$3="",I$4=""),"",IF($O20=Y$19,0,I20-$P20)) -> 2742.632044 | AA20: =IF(OR(K$3="",K$4=""),"",IF($O20=AA$19,0,K20-$P20)) -> 1652.068731 | AC20: =IF(OR(M$3="",M$4=""),"",IF($O20=AC$19,0,M20-$P20)) -> 831.2346052 | AE20: =IF(P20>=$P$3,0,1) -> 0
A21: 2 | C21: =IF(OR(C$3="",C$4=""),"",IF(S20=0,C$2+C$4*(LN(1/(1-RAND())))^(1/C$3),S20)) -> 2222.020693 | E21: =IF(OR(E$3="",E$4=""),"",IF(U20=0,E$2+E$4*(LN(1/(1-RAND())))^(1/E$3),U20)) -> 1990.856787 | G21: =IF(OR(G$3="",G$4=""),"",IF(W20=0,G$2+G$4*(LN(1/(1-RAND())))^(1/G$3),W20)) -> 2598.000417 | I21: =IF(OR(I$3="",I$4=""),"",IF(Y20=0,I$2+I$4*(LN(1/(1-RAND())))^(1/I$3),Y20)) -> 2742.632044 | K21: =IF(OR(K$3="",K$4=""),"",IF(AA20=0,K$2+K$4*(LN(1/(1-RAND())))^(1/K$3),AA20)) -> 1652.068731 | M21: =IF(OR(M$3="",M$4=""),"",IF(AC20=0,M$2+M$4*(LN(1/(1-RAND())))^(1/M$3),AC20)) -> 831.2346052 | O21: =HLOOKUP(P21,C21:$M$520,A521,0) -> F | P21: 831.2346052 | Q21: 11.24241481 | S21: 1390.786088 | U21: 1159.622182 | W21: 1766.765812 | Y21: 1911.397439 | AA21: 820.8341259 | AC21: 0 | AE21: 0
A22: 3 | C22: =IF(OR(C$3="",C$4=""),"",IF(S21=0,C$2+C$4*(LN(1/(1-RAND())))^(1/C$3),S21)) -> 1390.786088 | E22: =IF(OR(E$3="",E$4=""),"",IF(U21=0,E$2+E$4*(LN(1/(1-RAND())))^(1/E$3),U21)) -> 1159.622182 | G22: =IF(OR(G$3="",G$4=""),"",IF(W21=0,G$2+G$4*(LN(1/(1-RAND())))^(1/G$3),W21)) -> 1766.765812 | I22: =IF(OR(I$3="",I$4=""),"",IF(Y21=0,I$2+I$4*(LN(1/(1-RAND())))^(1/I$3),Y21)) -> 1911.397439 | K22: =IF(OR(K$3="",K$4=""),"",IF(AA21=0,K$2+K$4*(LN(1/(1-RAND())))^(1/K$3),AA21)) -> 820.8341259 | M22: =IF(OR(M$3="",M$4=""),"",IF(AC21=0,M$2+M$4*(LN(1/(1-RAND())))^(1/M$3),AC21)) -> 2815.423865 | O22: =HLOOKUP(P22,C22:$M$520,A522,0) -> E | P22: 820.8341259 | Q22: 8.675989971 | S22: 569.9519616 | U22: 338.7880557 | W22: 945.9316857 | Y22: 1090.563313 | AA22: 0 | AC22: 1994.589739 | AE22: 0
A23: 4 | C23: 569.9519616 | E23: 338.7880557 | G23: 945.9316857 | I23: 1090.563313 | K23: 2080.819107 | M23: 1994.589739 | O23: =HLOOKUP(P23,C23:$M$520,A523,0) -> B | P23: 338.7880557 | Q23: 9.674227394 | S23: 231.1639059 | U23: 0 | W23: 607.14363 | Y23: 751.7752571 | AA23: 1742.031051 | AC23: 1655.801684 | AE23: 0
A24: 5 | C24: 231.1639059 | E24: 2627.003485 | G24: 607.14363 | I24: 751.7752571 | K24: 1742.031051 | M24: 1655.801684 | O24: =HLOOKUP(P24,C24:$M$520,A524,0) -> A | P24: 231.1639059 | Q24: 10.91440925 | S24: 0 | U24: 2395.839579 | W24: 375.9797241 | Y24: 520.6113512 | AA24: 1510.867145 | AC24: 1424.637778 | AE24: 0
A25: 6 | C25: 4291.387075 | E25: 2395.839579 | G25: 375.9797241 | I25: 520.6113512 | K25: 1510.867145 | M25: 1424.637778 | O25: =HLOOKUP(P25,C25:$M$520,A525,0) -> C | P25: 375.9797241 | Q25: 9.269725026 | S25: 3915.407351 | U25: 2019.859855 | W25: 0 | Y25: 144.6316271 | AA25: 1134.887421 | AC25: 1048.658054 | AE25: 0
A26: 7 | C26: 3915.407351 | E26: 2019.859855 | G26: 3015.837626 | I26: 144.6316271 | K26: 1134.887421 | M26: 1048.658054 | O26: =HLOOKUP(P26,C26:$M$520,A526,0) -> D | P26: 144.6316271 | Q26: 10.16306204 | S26: 3770.775724 | U26: 1875.228228 | W26: 2871.205999 | Y26: 0 | AA26: 990.2557941 | AC26: 904.0264266 | AE26: 0
A27: 8 | C27: 3770.775724 | E27: 1875.228228 | G27: 2871.205999 | I27: 2344.324244 | K27: 990.2557941 | M27: 904.0264266 | O27: =HLOOKUP(P27,C27:$M$520,A527,0) -> F | P27: 904.0264266 | Q27: 10.95995816 | S27: 2866.749297 | U27: 971.2018016 | W27: 1967.179572 | Y27: 1440.297818 | AA27: 86.22936753 | AC27: 0 | AE27: 0
A28: 9 | C28: 2866.749297 | E28: 971.2018016 | G28: 1967.179572 | I28: 1440.297818 | K28: 86.22936753 | M28: 2656.130952 | O28: =HLOOKUP(P28,C28:$M$520,A528,0) -> E | P28: 86.22936753 | Q28: 9.818792723 | S28: 2780.51993 | U28: 884.9724341 | W28: 1880.950205 | Y28: 1354.06845 | AA28: 0 | AC28: 2569.901585 | AE28: 1
A29: 10 | C29: 2780.51993 | E29: 884.9724341 | G29: 1880.950205 | I29: 1354.06845 | K29: 4379.276712 | M29: 2569.901585 | O29: =HLOOKUP(P29,C29:$M$520,A529,0) -> B | P29: 884.9724341 | Q29: 9.425993244 | S29: 1895.547495 | U29: 0 | W29: 995.9777708 | Y29: 469.0960162 | AA29: 3494.304278 | AC29: 1684.929151 | AE29: 0
A30: 11 | C30: 1895.547495 | E30: 1641.694261 | G30: 995.9777708 | I30: 469.0960162 | K30: 3494.304278 | M30: 1684.929151 | O30: =HLOOKUP(P30,C30:$M$520,A530,0) -> D | P30: 469.0960162 | Q30: 9.366537537 | S30: 1426.451479 | U30: 1172.598245 | W30: 526.8817546 | Y30: 0 | AA30: 3025.208262 | AC30: 1215.833135 | AE30: 0
A31: 12 | C31: 1426.451479 | E31: 1172.598245 | G31: 526.8817546 | I31: 3728.17919 | K31: 3025.208262 | M31: 1215.833135 | O31: =HLOOKUP(P31,C31:$M$520,A531,0) -> C | P31: 526.8817546 | Q31: 11.43597875 | S31: 899.5697246 | U31: 645.7164906 | W31: 0 | Y31: 3201.297435 | AA31: 2498.326507 | AC31: 688.9513801 | AE31: 0
A32: 13 | C32: 899.5697246 | E32: 645.7164906 | G32: 2047.062747 | I32: 3201.297435 | K32: 2498.326507 | M32: 688.9513801 | O32: =HLOOKUP(P32,C32:$M$520,A532,0) -> B | P32: 645.7164906 | Q32: 10.71445627 | S32: 253.853234 | U32: 0 | W32: 1401.346256 | Y32: 2555.580945 | AA32: 1852.610017 | AC32: 43.23488942 | AE32: 0
A33: 14 | C33: 253.853234 | E33: 1784.285975 | G33: 1401.346256 | I33: 2555.580945 | K33: 1852.610017 | M33: 43.23488942 | O33: =HLOOKUP(P33,C33:$M$520,A533,0) -> F | P33: 43.23488942 | Q33: 10.77350019 | S33: 210.6183446 | U33: 1741.051085 | W33: 1358.111367 | Y33: 2512.346055 | AA33: 1809.375127 | AC33: 0 | AE33: 1
A34: 15 | C34: 210.6183446 | E34: 1741.051085 | G34: 1358.111367 | I34: 2512.346055 | K34: 1809.375127 | M34: 2422.118644 | O34: =HLOOKUP(P34,C34:$M$520,A534,0) -> A | P34: 210.6183446 | Q34: 9.939826403 | S34: 0 | U34: 1530.432741 | W34: 1147.493022 | Y34: 2301.727711 | AA34: 1598.756783 | AC34: 2211.500299 | AE34: 0
A35: 16 | C35: 3158.611132 | E35: 1530.432741 | G35: 1147.493022 | I35: 2301.727711 | K35: 1598.756783 | M35: 2211.500299 | O35: =HLOOKUP(P35,C35:$M$520,A535,0) -> C | P35: 1147.493022 | Q35: 9.607300291 | S35: 2011.118109 | U35: 382.9397186 | W35: 0 | Y35: 1154.234688 | AA35: 451.2637605 | AC35: 1064.007277 | AE35: 0
A36: 17 | C36: 2011.118109 | E36: 382.9397186 | G36: 3002.873312 | I36: 1154.234688 | K36: 451.2637605 | M36: 1064.007277 | O36: =HLOOKUP(P36,C36:$M$520,A536,0) -> B | P36: 382.9397186 | Q36: 10.29278361 | S36: 1628.178391 | U36: 0 | W36: 2619.933593 | Y36: 771.2949699 | AA36: 68.32404196 | AC36: 681.0675588 | AE36: 0
A37: 18 | C37: 1628.178391 | E37: 2170.809639 | G37: 2619.933593 | I37: 771.2949699 | K37: 68.32404196 | M37: 681.0675588 | O37: =HLOOKUP(P37,C37:$M$520,A537,0) -> E | P37: 68.32404196 | Q37: 10.32019052 | S37: 1559.854349 | U37: 2102.485597 | W37: 2551.609551 | Y37: 702.9709279 | AA37: 0 | AC37: 612.7435168 | AE37: 1
A38: 19 | C38: 1559.854349 | E38: 2102.485597 | G38: 2551.609551 | I38: 702.9709279 | K38: 3929.654806 | M38: 612.7435168 | O38: =HLOOKUP(P38,C38:$M$520,A538,0) -> F | P38: 612.7435168 | Q38: 10.36833276 | S38: 947.1108321 | U38: 1489.742081 | W38: 1938.866035 | Y38: 90.22741114 | AA38: 3316.911289 | AC38: 0 | AE38: 0
A39: 20 | C39: 947.1108321 | E39: 1489.742081 | G39: 1938.866035 | I39: 90.22741114 | K39: 3316.911289 | M39: 1481.933959 | O39: =HLOOKUP(P39,C39:$M$520,A539,0) -> D | P39: 90.22741114 | Q39: 9.734518674 | S39: 856.883421 | U39: 1399.514669 | W39: 1848.638623 | Y39: 0 | AA39: 3226.683878 | AC39: 1391.706547 | AE39: 1
A40: 21 | C40: 856.883421 | E40: 1399.514669 | G40: 1848.638623 | I40: 2494.646213 | K40: 3226.683878 | M40: 1391.706547 | O40: =HLOOKUP(P40,C40:$M$520,A540,0) -> A | P40: 856.883421 | Q40: 9.953492334 | S40: 0 | U40: 542.6312484 | W40: 991.7552025 | Y40: 1637.762792 | AA40: 2369.800457 | AC40: 534.8231265 | AE40: 0
A41: 22 | C41: 3048.138021 | E41: 542.6312484 | G41: 991.7552025 | I41: 1637.762792 | K41: 2369.800457 | M41: 534.8231265 | O41: =HLOOKUP(P41,C41:$M$520,A541,0) -> F | P41: 534.8231265 | Q41: 10.23560332 | S41: 2513.314895 | U41: 7.808121888 | W41: 456.932076 | Y41: 1102.939665 | AA41: 1834.977331 | AC41: 0 | AE41: 0
A42: 23 | C42: 2513.314895 | E42: 7.808121888 | G42: 456.932076 | I42: 1102.939665 | K42: 1834.977331 | M42: 1945.276884 | O42: =HLOOKUP(P42,C42:$M$520,A542,0) -> B | P42: 7.808121888 | Q42: 8.669223127 | S42: 2505.506773 | U42: 0 | W42: 449.1239541 | Y42: 1095.131544 | AA42: 1827.169209 | AC42: 1937.468762 | AE42: 1
A43: 24 | C43: 2505.506773 | E43: 2251.792422 | G43: 449.1239541 | I43: 1095.131544 | K43: 1827.169209 | M43: 1937.468762 | O43: =HLOOKUP(P43,C43:$M$520,A543,0) -> C | P43: 449.1239541 | Q43: 10.06946621 | S43: 2056.382818 | U43: 1802.668468 | W43: 0 | Y43: 646.0075894 | AA43: 1378.045255 | AC43: 1488.344808 | AE43: 0
A44: 25 | C44: 2056.382818 | E44: 1802.668468 | G44: 3045.020441 | I44: 646.0075894 | K44: 1378.045255 | M44: 1488.344808 | O44: =HLOOKUP(P44,C44:$M$520,A544,0) -> D | P44: 646.0075894 | Q44: 9.146034295 | S44: 1410.375229 | U44: 1156.660879 | W44: 2399.012851 | Y44: 0 | AA44: 732.0376654 | AC44: 842.3372188 | AE44: 0
A45: 26 | C45: 1410.375229 | E45: 1156.660879 | G45: 2399.012851 | I45: 3545.358037 | K45: 732.0376654 | M45: 842.3372188 | O45: =HLOOKUP(P45,C45:$M$520,A545,0) -> E | P45: 732.0376654 | Q45: 10.54811965 | S45: 678.3375637 | U45: 424.6232132 | W45: 1666.975186 | Y45: 2813.320372 | AA45: 0 | AC45: 110.2995535 | AE45: 0
A46: 27 | C46: 678.3375637 | E46: 424.6232132 | G46: 1666.975186 | I46: 2813.320372 | K46: 4579.22562 | M46: 110.2995535 | O46: =HLOOKUP(P46,C46:$M$520,A546,0) -> F | P46: 110.2995535 | Q46: 10.6800335 | S46: 568.0380102 | U46: 314.3236597 | W46: 1556.675632 | Y46: 2703.020818 | AA46: 4468.926067 | AC46: 0 | AE46: 0
A47: 28 | C47: 568.0380102 | E47: 314.3236597 | G47: 1556.675632 | I47: 2703.020818 | K47: 4468.926067 | M47: 2049.255567 | O47: =HLOOKUP(P47,C47:$M$520,A547,0) -> B | P47: 314.3236597 | Q47: 10.41923799 | S47: 253.7143505 | U47: 0 | W47: 1242.351973 | Y47: 2388.697159 | AA47: 4154.602407 | AC47: 1734.931907 | AE47: 0
A48: 29 | C48: 253.7143505 | E48: 2450.621386 | G48: 1242.351973 | I48: 2388.697159 | K48: 4154.602407 | M48: 1734.931907 | O48: =HLOOKUP(P48,C48:$M$520,A548,0) -> A | P48: 253.7143505 | Q48: 11.09394849 | S48: 0 | U48: 2196.907035 | W48: 988.6376221 | Y48: 2134.982808 | AA48: 3900.888057 | AC48: 1481.217556 | AE48: 0
A49: 30 | C49: 3585.731107 | E49: 2196.907035 | G49: 988.6376221 | I49: 2134.982808 | K49: 3900.888057 | M49: 1481.217556 | O49: =HLOOKUP(P49,C49:$M$520,A549,0) -> C | P49: 988.6376221 | Q49: 8.856723074 | S49: 2597.093485 | U49: 1208.269413 | W49: 0 | Y49: 1146.345186 | AA49: 2912.250434 | AC49: 492.5799343 | AE49: 0
A50: 31 | C50: 2597.093485 | E50: 1208.269413 | G50: 6150.039976 | I50: 1146.345186 | K50: 2912.250434 | M50: 492.5799343 | O50: =HLOOKUP(P50,C50:$M$520,A550,0) -> F | P50: 492.5799343 | Q50: 9.093772117 | S50: 2104.513551 | U50: 715.6894789 | W50: 5657.460042 | Y50: 653.7652518 | AA50: 2419.6705 | AC50: 0 | AE50: 0
A51: 32 | C51: 2104.513551 | E51: 715.6894789 | G51: 5657.460042 | I51: 653.7652518 | K51: 2419.6705 | M51: 1686.487645 | O51: =HLOOKUP(P51,C51:$M$520,A551,0) -> D | P51: 653.7652518 | Q51: 10.281662 | S51: 1450.748299 | U51: 61.92422708 | W51: 5003.69479 | Y51: 0 | AA51: 1765.905248 | AC51: 1032.722393 | AE51: 0
A52: 33 | C52: 1450.748299 | E52: 61.92422708 | G52: 5003.69479 | I52: 5111.801786 | K52: 1765.905248 | M52: 1032.722393 | O52: =HLOOKUP(P52,C52:$M$520,A552,0) -> B | P52: 61.92422708 | Q52: 11.22907485 | S52: 1388.824072 | U52: 0 | W52: 4941.770563 | Y52: 5049.877559 | AA52: 1703.981021 | AC52: 970.7981658 | AE52: 1
A53: 34 | C53: 1388.824072 | E53: 1959.255182 | G53: 4941.770563 | I53: 5049.877559 | K53: 1703.981021 | M53: 970.7981658 | O53: =HLOOKUP(P53,C53:$M$520,A553,0) -> F | P53: 970.7981658 | Q53: 10.33372499 | S53: 418.0259061 | U53: 988.4570159 | W53: 3970.972397 | Y53: 4079.079393 | AA53: 733.1828554 | AC53: 0 | AE53: 0
A54: 35 | C54: 418.0259061 | E54: 988.4570159 | G54: 3970.972397 | I54: 4079.079393 | K54: 733.1828554 | M54: 2300.935112 | O54: =HLOOKUP(P54,C54:$M$520,A554,0) -> A | P54: 418.0259061 | Q54: 11.45419103 | S54: 0 | U54: 570.4311098 | W54: 3552.946491 | Y54: 3661.053487 | AA54: 315.1569493 | AC54: 1882.909206 | AE54: 0
A55: 36 | C55: 3939.992389 | E55: 570.4311098 | G55: 3552.946491 | I55: 3661.053487 | K55: 315.1569493 | M55: 1882.909206 | O55: =HLOOKUP(P55,C55:$M$520,A555,0) -> E | P55: 315.1569493 | Q55: 9.419241831 | S55: 3624.83544 | U55: 255.2741605 | W55: 3237.789542 | Y55: 3345.896538 | AA55: 0 | AC55: 1567.752257 | AE55: 0
A56: 37 | C56: 3624.83544 | E56: 255.2741605 | G56: 3237.789542 | I56: 3345.896538 | K56: 2471.393428 | M56: 1567.752257 | O56: =HLOOKUP(P56,C56:$M$520,A556,0) -> B | P56: 255.2741605 | Q56: 10.12564743 | S56: 3369.561279 | U56: 0 | W56: 2982.515381 | Y56: 3090.622377 | AA56: 2216.119267 | AC56: 1312.478097 | AE56: 0
A57: 38 | C57: 3369.561279 | E57: 1933.472361 | G57: 2982.515381 | I57: 3090.622377 | K57: 2216.119267 | M57: 1312.478097 | O57: =HLOOKUP(P57,C57:$M$520,A557,0) -> F | P57: 1312.478097 | Q57: 9.955306149 | S57: 2057.083183 | U57: 620.9942642 | W57: 1670.037285 | Y57: 1778.144281 | AA57: 903.6411705 | AC57: 0 | AE57: 0
A58: 39 | C58: 2057.083183 | E58: 620.9942642 | G58: 1670.037285 | I58: 1778.144281 | K58: 903.6411705 | M58: 1463.61387 | O58: =HLOOKUP(P58,C58:$M$520,A558,0) -> B | P58: 620.9942642 | Q58: 9.817814954 | S58: 1436.088918 | U58: 0 | W58: 1049.043021 | Y58: 1157.150016 | AA58: 282.6469063 | AC58: 842.6196055 | AE58: 0
A59: 40 | C59: 1436.088918 | E59: 1757.905208 | G59: 1049.043021 | I59: 1157.150016 | K59: 282.6469063 | M59: 842.6196055 | O59: =HLOOKUP(P59,C59:$M$520,A559,0) -> E | P59: 282.6469063 | Q59: 8.891916026 | S59: 1153.442012 | U59: 1475.258302 | W59: 766.3961144 | Y59: 874.5031102 | AA59: 0 | AC59: 559.9726991 | AE59: 0
A60: 41 | C60: 1153.442012 | E60: 1475.258302 | G60: 766.3961144 | I60: 874.5031102 | K60: 4337.125592 | M60: 559.9726991 | O60: =HLOOKUP(P60,C60:$M$520,A560,0) -> F | P60: 559.9726991 | Q60: 11.13171125 | S60: 593.469313 | U60: 915.2856028 | W60: 206.4234153 | Y60: 314.530411 | AA60: 3777.152893 | AC60: 0 | AE60: 0
A61: 42 | C61: 593.469313 | E61: 915.2856028 | G61: 206.4234153 | I61: 314.530411 | K61: 3777.152893 | M61: 1714.21027 | O61: =HLOOKUP(P61,C61:$M$520,A561,0) -> C | P61: 206.4234153 | Q61: 10.13730918 | S61: 387.0458977 | U61: 708.8621875 | W61: 0 | Y61: 108.1069957 | AA61: 3570.729478 | AC61: 1507.786855 | AE61: 0
A62: 43 | C62: 387.0458977 | E62: 708.8621875 | G62: 3556.493673 | I62: 108.1069957 | K62: 3570.729478 | M62: 1507.786855 | O62: =HLOOKUP(P62,C62:$M$520,A562,0) -> D | P62: 108.1069957 | Q62: 10.16236256 | S62: 278.938902 | U62: 600.7551918 | W62: 3448.386677 | Y62: 0 | AA62: 3462.622482 | AC62: 1399.679859 | AE62: 0
A63: 44 | C63: 278.938902 | E63: 600.7551918 | G63: 3448.386677 | I63: 5713.725543 | K63: 3462.622482 | M63: 1399.679859 | O63: =HLOOKUP(P63,C63:$M$520,A563,0) -> A | P63: 278.938902 | Q63: 10.66859571 | S63: 0 | U63: 321.8162898 | W63: 3169.447775 | Y63: 5434.786641 | AA63: 3183.68358 | AC63: 1120.740957 | AE63: 0
A64: 45 | C64: 4029.115381 | E64: 321.8162898 | G64: 3169.447775 | I64: 5434.786641 | K64: 3183.68358 | M64: 1120.740957 | O64: =HLOOKUP(P64,C64:$M$520,A564,0) -> B | P64: 321.8162898 | Q64: 9.957118323 | S64: 3707.299091 | U64: 0 | W64: 2847.631486 | Y64: 5112.970351 | AA64: 2861.86729 | AC64: 798.9246675 | AE64: 0
A65: 46 | C65: 3707.299091 | E65: 2187.307418 | G65: 2847.631486 | I65: 5112.970351 | K65: 2861.86729 | M65: 798.9246675 | O65: =HLOOKUP(P65,C65:$M$520,A565,0) -> F | P65: 798.9246675 | Q65: 11.51178054 | S65: 2908.374424 | U65: 1388.38275 | W65: 2048.706818 | Y65: 4314.045684 | AA65: 2062.942623 | AC65: 0 | AE65: 0
A66: 47 | C66: 2908.374424 | E66: 1388.38275 | G66: 2048.706818 | I66: 4314.045684 | K66: 2062.942623 | M66: 2374.719463 | O66: =HLOOKUP(P66,C66:$M$520,A566,0) -> B | P66: 1388.38275 | Q66: 9.259862709 | S66: 1519.991673 | U66: 0 | W66: 660.3240678 | Y66: 2925.662934 | AA66: 674.5598726 | AC66: 986.3367132 | AE66: 0
A67: 48 | C67: 1519.991673 | E67: 1431.392387 | G67: 660.3240678 | I67: 2925.662934 | K67: 674.5598726 | M67: 986.3367132 | O67: =HLOOKUP(P67,C67:$M$520,A567,0) -> C | P67: 660.3240678 | Q67: 10.08080899 | S67: 859.6676057 | U67: 771.0683196 | W67: 0 | Y67: 2265.338866 | AA67: 14.23580486 | AC67: 326.0126454 | AE67: 0
A68: 49 | C68: 859.6676057 | E68: 771.0683196 | G68: 6371.343571 | I68: 2265.338866 | K68: 14.23580486 | M68: 326.0126454 | O68: =HLOOKUP(P68,C68:$M$520,A568,0) -> E | P68: 14.23580486 | Q68: 10.47492172 | S68: 845.4318008 | U68: 756.8325148 | W68: 6357.107767 | Y68: 2251.103061 | AA68: 0 | AC68: 311.7768406 | AE68: 1
A69: 50 | C69: 845.4318008 | E69: 756.8325148 | G69: 6357.107767 | I69: 2251.103061 | K69: 2349.440672 | M69: 311.7768406 | O69: =HLOOKUP(P69,C69:$M$520,A569,0) -> F | P69: 311.7768406 | Q69: 10.9248371 | S69: 533.6549602 | U69: 445.0556742 | W69: 6045.330926 | Y69: 1939.32622 | AA69: 2037.663832 | AC69: 0 | AE69: 0
A70: 51 | C70: 533.6549602 | E70: 445.0556742 | G70: 6045.330926 | I70: 1939.32622 | K70: 2037.663832 | M70: 3186.73748 | O70: =HLOOKUP(P70,C70:$M$520,A570,0) -> B | P70: 445.0556742 | Q70: 9.989529885 | S70: 88.59928603 | U70: 0 | W70: 5600.275252 | Y70: 1494.270546 | AA70: 1592.608158 | AC70: 2741.681806 | AE70: 0
A71: 52 | C71: 88.59928603 | E71: 1851.208272 | G71: 5600.275252 | I71: 1494.270546 | K71: 1592.608158 | M71: 2741.681806 | O71: =HLOOKUP(P71,C71:$M$520,A571,0) -> A | P71: 88.59928603 | Q71: 9.437451714 | S71: 0 | U71: 1762.608986 | W71: 5511.675966 | Y71: 1405.67126 | AA71: 1504.008872 | AC71: 2653.08252 | AE71: 1
A72: 53 | C72: 4243.25422 | E72: 1762.608986 | G72: 5511.675966 | I72: 1405.67126 | K72: 1504.008872 | M72: 2653.08252 | O72: =HLOOKUP(P72,C72:$M$520,A572,0) -> D | P72: 1405.67126 | Q72: 10.26818685 | S72: 2837.58296 | U72: 356.9377261 | W72: 4106.004706 | Y72: 0 | AA72: 98.33761144 | AC72: 1247.411259 | AE72: 0
A73: 54 | C73: 2837.58296 | E73: 356.9377261 | G73: 4106.004706 | I73: 4169.583302 | K73: 98.33761144 | M73: 1247.411259 | O73: =HLOOKUP(P73,C73:$M$520,A573,0) -> E | P73: 98.33761144 | Q73: 9.425174761 | S73: 2739.245348 | U73: 258.6001146 | W73: 4007.667094 | Y73: 4071.245691 | AA73: 0 | AC73: 1149.073648 | AE73: 1
A74: 55 | C74: 2739.245348 | E74: 258.6001146 | G74: 4007.667094 | I74: 4071.245691 | K74: 3803.311069 | M74: 1149.073648 | O74: =HLOOKUP(P74,C74:$M$520,A574,0) -> B | P74: 258.6001146 | Q74: 10.59106333 | S74: 2480.645234 | U74: 0 | W74: 3749.06698 | Y74: 3812.645576 | AA74: 3544.710954 | AC74: 890.4735333 | AE74: 0
A75: 56 | C75: 2480.645234 | E75: 2106.927459 | G75: 3749.06698 | I75: 3812.645576 | K75: 3544.710954 | M75: 890.4735333 | O75: =HLOOKUP(P75,C75:$M$520,A575,0) -> F | P75: 890.4735333 | Q75: 10.94616063 | S75: 1590.171701 | U75: 1216.453925 | W75: 2858.593446 | Y75: 2922.172043 | AA75: 2654.237421 | AC75: 0 | AE75: 0
A76: 57 | C76: 1590.171701 | E76: 1216.453925 | G76: 2858.593446 | I76: 2922.172043 | K76: 2654.237421 | M76: 2884.130135 | O76: =HLOOKUP(P76,C76:$M$520,A576,0) -> B | P76: 1216.453925 | Q76: 9.139351004 | S76: 373.7177753 | U76: 0 | W76: 1642.139521 | Y76: 1705.718118 | AA76: 1437.783495 | AC76: 1667.67621 | AE76: 0
A77: 58 | C77: 373.7177753 | E77: 2292.319966 | G77: 1642.139521 | I77: 1705.718118 | K77: 1437.783495 | M77: 1667.67621 | O77: =HLOOKUP(P77,C77:$M$520,A577,0) -> A | P77: 373.7177753 | Q77: 8.701712051 | S77: 0 | U77: 1918.60219 | W77: 1268.421746 | Y77: 1332.000342 | AA77: 1064.06572 | AC77: 1293.958434 | AE77: 0
A78: 59 | C78: 3625.051519 | E78: 1918.60219 | G78: 1268.421746 | I78: 1332.000342 | K78: 1064.06572 | M78: 1293.958434 | O78: =HLOOKUP(P78,C78:$M$520,A578,0) -> E | P78: 1064.06572 | Q78: 8.917545095 | S78: 2560.985799 | U78: 854.5364702 | W78: 204.3560254 | Y78: 267.9346222 | AA78: 0 | AC78: 229.8927141 | AE78: 0
A79: 60 | C79: 2560.985799 | E79: 854.5364702 | G79: 204.3560254 | I79: 267.9346222 | K79: 4500.462439 | M79: 229.8927141 | O79: =HLOOKUP(P79,C79:$M$520,A579,0) -> C | P79: 204.3560254 | Q79: 9.757362151 | S79: 2356.629773 | U79: 650.1804448 | W79: 0 | Y79: 63.57859672 | AA79: 4296.106413 | AC79: 25.53668869 | AE79: 0
A80: 61 | C80: 2356.629773 | E80: 650.1804448 | G80: 4239.185231 | I80: 63.57859672 | K80: 4296.106413 | M80: 25.53668869 | O80: =HLOOKUP(P80,C80:$M$520,A580,0) -> F | P80: 25.53668869 | Q80: 7.233172994 | S80: 2331.093085 | U80: 624.6437561 | W80: 4213.648542 | Y80: 38.04190803 | AA80: 4270.569725 | AC80: 0 | AE80: 1
A81: 62 | C81: 2331.093085 | E81: 624.6437561 | G81: 4213.648542 | I81: 38.04190803 | K81: 4270.569725 | M81: 2755.541048 | O81: =HLOOKUP(P81,C81:$M$520,A581,0) -> D | P81: 38.04190803 | Q81: 9.229502174 | S81: 2293.051177 | U81: 586.601848 | W81: 4175.606634 | Y81: 0 | AA81: 4232.527817 | AC81: 2717.49914 | AE81: 1
A82: 63 | C82: 2293.051177 | E82: 586.601848 | G82: 4175.606634 | I82: 6042.177428 | K82: 4232.527817 | M82: 2717.49914 | O82: =HLOOKUP(P82,C82:$M$520,A582,0) -> B | P82: 586.601848 | Q82: 9.356020989 | S82: 1706.449329 | U82: 0 | W82: 3589.004786 | Y82: 5455.57558 | AA82: 3645.925969 | AC82: 2130.897292 | AE82: 0
A83: 64 | C83: 1706.449329 | E83: 1957.88322 | G83: 3589.004786 | I83: 5455.57558 | K83: 3645.925969 | M83: 2130.897292 | O83: =HLOOKUP(P83,C83:$M$520,A583,0) -> A | P83: 1706.449329 | Q83: 9.132188812 | S83: 0 | U83: 251.4338917 | W83: 1882.555457 | Y83: 3749.126252 | AA83: 1939.47664 | AC83: 424.4479636 | AE83: 0
A84: 65 | C84: 2579.584251 | E84: 251.4338917 | G84: 1882.555457 | I84: 3749.126252 | K84: 1939.47664 | M84: 424.4479636 | O84: =HLOOKUP(P84,C84:$M$520,A584,0) -> B | P84: =MIN(C84:M84) -> 251.4338917 | Q84: =IF(O84=C$19,EXP(NORMINV(RAND(),C$8,C$9)),IF(O84=E$19,EXP(NORMINV(RAND(),E$8,E$9)),IF(O84=G$19,EXP(NORMINV(RAND(),G$8,G$9)),IF(O84=I$19,EXP(NORMINV(RAND(),I$8,I$9)),IF(O84=K$19,EXP(NORMINV(RAND(),K$8,K$9)),IF(O84=M$19,EXP(NORMINV(RAND(),M$8,M$9)))))))) -> 8.788938632 | S84: =IF(OR(C$3="",C$4=""),"",IF($O84=S$19,0,C84-$P84)) -> 2328.150359 | U84: =IF(OR(E$3="",E$4=""),"",IF($O84=U$19,0,E84-$P84)) -> 0 | W84: =IF(OR(G$3="",G$4=""),"",IF($O84=W$19,0,G84-$P84)) -> 1631.121565 | Y84: =IF(OR(I$3="",I$4=""),"",IF($O84=Y$19,0,I84-$P84)) -> 3497.69236 | AA84: =IF(OR(K$3="",K$4=""),"",IF($O84=AA$19,0,K84-$P84)) -> 1688.042748 | AC84: =IF(OR(M$3="",M$4=""),"",IF($O84=AC$19,0,M84-$P84)) -> 173.0140719 | AE84: =IF(P84>=$P$3,0,1) -> 0
A85: 66 | C85: 2328.150359 | E85: 2191.513335 | G85: 1631.121565 | I85: 3497.69236 | K85: 1688.042748 | M85: 173.0140719 | O85: =HLOOKUP(P85,C85:$M$520,A585,0) -> F | P85: 173.0140719 | Q85: 10.46442654 | S85: 2155.136287 | U85: 2018.499264 | W85: 1458.107494 | Y85: 3324.678288 | AA85: 1515.028676 | AC85: 0 | AE85: 0
A86: 67 | C86: =IF(OR(C$3="",C$4=""),"",IF(S85=0,C$2+C$4*(LN(1/(1-RAND())))^(1/C$3),S85)) -> 2155.136287 | E86: =IF(OR(E$3="",E$4=""),"",IF(U85=0,E$2+E$4*(LN(1/(1-RAND())))^(1/E$3),U85)) -> 2018.499264 | G86: =IF(OR(G$3="",G$4=""),"",IF(W85=0,G$2+G$4*(LN(1/(1-RAND())))^(1/G$3),W85)) -> 1458.107494 | I86: =IF(OR(I$3="",I$4=""),"",IF(Y85=0,I$2+I$4*(LN(1/(1-RAND())))^(1/I$3),Y85)) -> 3324.678288 | K86: =IF(OR(K$3="",K$4=""),"",IF(AA85=0,K$2+K$4*(LN(1/(1-RAND())))^(1/K$3),AA85)) -> 1515.028676 | M86: =IF(OR(M$3="",M$4=""),"",IF(AC85=0,M$2+M$4*(LN(1/(1-RAND())))^(1/M$3),AC85)) -> 1944.060211 | O86: =HLOOKUP(P86,C86:$M$520,A586,0) -> C | P86: 1458.107494 | Q86: 10.0949608 | S86: 697.0287934 | U86: 560.39177 | W86: 0 | Y86: 1866.570795 | AA86: 56.92118279 | AC86: 485.9527176 | AE86: 0
A87: 68 | C87: 697.0287934 | E87: 560.39177 | G87: 3950.241581 | I87: 1866.570795 | K87: 56.92118279 | M87: 485.9527176 | O87: =HLOOKUP(P87,C87:$M$520,A587,0) -> E | P87: 56.92118279 | Q87: 9.41125823 | S87: 640.1076106 | U87: 503.4705872 | W87: 3893.320398 | Y87: 1809.649612 | AA87: 0 | AC87: 429.0315348 | AE87: 1
A88: 69 | C88: 640.1076106 | E88: 503.4705872 | G88: 3893.320398 | I88: 1809.649612 | K88: 2782.301079 | M88: 429.0315348 | O88: =HLOOKUP(P88,C88:$M$520,A588,0) -> F | P88: 429.0315348 | Q88: 9.329672368 | S88: 211.0760757 | U88: 74.43905238 | W88: 3464.288863 | Y88: 1380.618077 | AA88: 2353.269545 | AC88: 0 | AE88: 0
A89: 70 | C89: 211.0760757 | E89: 74.43905238 | G89: 3464.288863 | I89: 1380.618077 | K89: 2353.269545 | M89: 2742.231179 | O89: =HLOOKUP(P89,C89:$M$520,A589,0) -> B | P89: 74.43905238 | Q89: 10.57039056 | S89: 136.6370234 | U89: 0 | W89: 3389.849811 | Y89: 1306.179025 | AA89: 2278.830492 | AC89: 2667.792126 | AE89: 1
A90: 71 | C90: 136.6370234 | E90: 2199.533034 | G90: 3389.849811 | I90: 1306.179025 | K90: 2278.830492 | M90: 2667.792126 | O90: =HLOOKUP(P90,C90:$M$520,A590,0) -> A | P90: 136.6370234 | Q90: 9.209204401 | S90: 0 | U90: 2062.89601 | W90: 3253.212787 | Y90: 1169.542001 | AA90: 2142.193469 | AC90: 2531.155103 | AE90: 0
A91: 72 | C91: 2684.819438 | E91: 2062.89601 | G91: 3253.212787 | I91: 1169.542001 | K91: 2142.193469 | M91: 2531.155103 | O91: =HLOOKUP(P91,C91:$M$520,A591,0) -> D | P91: 1169.542001 | Q91: 8.983195971 | S91: 1515.277437 | U91: 893.354009 | W91: 2083.670786 | Y91: 0 | AA91: 972.6514675 | AC91: 1361.613102 | AE91: 0
A92: 73 | C92: 1515.277437 | E92: 893.354009 | G92: 2083.670786 | I92: 1779.780733 | K92: 972.6514675 | M92: 1361.613102 | O92: =HLOOKUP(P92,C92:$M$520,A592,0) -> B | P92: 893.354009 | Q92: 10.92817519 | S92: 621.9234282 | U92: 0 | W92: 1190.316777 | Y92: 886.4267243 | AA92: 79.29745848 | AC92: 468.2590925 | AE92: 0
A93: 74 | C93: 621.9234282 | E93: 2329.003886 | G93: 1190.316777 | I93: 886.4267243 | K93: 79.29745848 | M93: 468.2590925 | O93: =HLOOKUP(P93,C93:$M$520,A593,0) -> E | P93: 79.29745848 | Q93: 11.05144082 | S93: 542.6259697 | U93: 2249.706428 | W93: 1111.019319 | Y93: 807.1292659 | AA93: 0 | AC93: 388.961634 | AE93: 1
A94: 75 | C94: 542.6259697 | E94: 2249.706428 | G94: 1111.019319 | I94: 807.1292659 | K94: 4213.383612 | M94: 388.961634 | O94: =HLOOKUP(P94,C94:$M$520,A594,0) -> F | P94: 388.961634 | Q94: 10.86022283 | S94: 153.6643357 | U94: 1860.744794 | W94: 722.0576846 | Y94: 418.1676319 | AA94: 3824.421978 | AC94: 0 | AE94: 0
A95: 76 | C95: 153.6643357 | E95: 1860.744794 | G95: 722.0576846 | I95: 418.1676319 | K95: 3824.421978 | M95: 2317.443062 | O95: =HLOOKUP(P95,C95:$M$520,A595,0) -> A | P95: 153.6643357 | Q95: 11.05192617 | S95: 0 | U95: 1707.080458 | W95: 568.3933489 | Y95: 264.5032962 | AA95: 3670.757642 | AC95: 2163.778726 | AE95: 0
A96: 77 | C96: 3970.583415 | E96: 1707.080458 | G96: 568.3933489 | I96: 264.5032962 | K96: 3670.757642 | M96: 2163.778726 | O96: =HLOOKUP(P96,C96:$M$520,A596,0) -> D | P96: 264.5032962 | Q96: 8.206803465 | S96: 3706.080118 | U96: 1442.577162 | W96: 303.8900528 | Y96: 0 | AA96: 3406.254346 | AC96: 1899.27543 | AE96: 0
A97: 78 | C97: 3706.080118 | E97: 1442.577162 | G97: 303.8900528 | I97: 3992.389133 | K97: 3406.254346 | M97: 1899.27543 | O97: =HLOOKUP(P97,C97:$M$520,A597,0) -> C | P97: 303.8900528 | Q97: 9.962810492 | S97: 3402.190066 | U97: 1138.687109 | W97: 0 | Y97: 3688.499081 | AA97: 3102.364293 | AC97: 1595.385377 | AE97: 0
A98: 79 | C98: 3402.190066 | E98: 1138.687109 | G98: 3024.773431 | I98: 3688.499081 | K98: 3102.364293 | M98: 1595.385377 | O98: =HLOOKUP(P98,C98:$M$520,A598,0) -> B | P98: 1138.687109 | Q98: 8.428309656 | S98: 2263.502957 | U98: 0 | W98: 1886.086322 | Y98: 2549.811972 | AA98: 1963.677184 | AC98: 456.6982679 | AE98: 0
A99: 80 | C99: 2263.502957 | E99: 1791.621392 | G99: 1886.086322 | I99: 2549.811972 | K99: 1963.677184 | M99: 456.6982679 | O99: =HLOOKUP(P99,C99:$M$520,A599,0) -> F | P99: 456.6982679 | Q99: 10.55096347 | S99: 1806.804689 | U99: 1334.923125 | W99: 1429.388054 | Y99: 2093.113704 | AA99: 1506.978916 | AC99: 0 | AE99: 0
A100: 81 | C100: 1806.804689 | E100: 1334.923125 | G100: 1429.388054 | I100: 2093.113704 | K100: 1506.978916 | M100: 2315.077718 | O100: =HLOOKUP(P100,C100:$M$520,A600,0) -> B | P100: 1334.923125 | Q100: 8.496623801 | S100: 471.8815641 | U100: 0 | W100: 94.4649295 | Y100: 758.1905791 | AA100: 172.0557916 | AC100: 980.1545933 | AE100: 0
A101: 82 | C101: 471.8815641 | E101: 2346.339325 | G101: 94.4649295 | I101: 758.1905791 | K101: 172.0557916 | M101: 980.1545933 | O101: =HLOOKUP(P101,C101:$M$520,A601,0) -> C | P101: 94.4649295 | Q101: 9.80911113 | S101: 377.4166346 | U101: 2251.874396 | W101: 0 | Y101: 663.7256496 | AA101: 77.59086209 | AC101: 885.6896639 | AE101: 1
A102: 83 | C102: 377.4166346 | E102: 2251.874396 | G102: 5873.05442 | I102: 663.7256496 | K102: 77.59086209 | M102: 885.6896639 | O102: =HLOOKUP(P102,C102:$M$520,A602,0) -> E | P102: 77.59086209 | Q102: 11.03817938 | S102: 299.8257725 | U102: 2174.283534 | W102: 5795.463558 | Y102: 586.1347876 | AA102: 0 | AC102: 808.0988018 | AE102: 1
A103: 84 | C103: 299.8257725 | E103: 2174.283534 | G103: 5795.463558 | I103: 586.1347876 | K103: 2162.708368 | M103: 808.0988018 | O103: =HLOOKUP(P103,C103:$M$520,A603,0) -> A | P103: 299.8257725 | Q103: 10.23917748 | S103: 0 | U103: 1874.457761 | W103: 5495.637786 | Y103: 286.3090151 | AA103: 1862.882596 | AC103: 508.2730293 | AE103: 0
A104: 85 | C104: 4164.777873 | E104: 1874.457761 | G104: 5495.637786 | I104: 286.3090151 | K104: 1862.882596 | M104: 508.2730293 | O104: =HLOOKUP(P104,C104:$M$520,A604,0) -> D | P104: 286.3090151 | Q104: 9.539382709 | S104: 3878.468858 | U104: 1588.148746 | W104: 5209.328771 | Y104: 0 | AA104: 1576.573581 | AC104: 221.9640142 | AE104: 0
A105: 86 | C105: 3878.468858 | E105: 1588.148746 | G105: 5209.328771 | I105: 4088.837312 | K105: 1576.573581 | M105: 221.9640142 | O105: =HLOOKUP(P105,C105:$M$520,A605,0) -> F | P105: 221.9640142 | Q105: 9.458350005 | S105: 3656.504844 | U105: 1366.184732 | W105: 4987.364756 | Y105: 3866.873298 | AA105: 1354.609566 | AC105: 0 | AE105: 0
A106: 87 | C106: 3656.504844 | E106: 1366.184732 | G106: 4987.364756 | I106: 3866.873298 | K106: 1354.609566 | M106: 2701.637324 | O106: =HLOOKUP(P106,C106:$M$520,A606,0) -> E | P106: 1354.609566 | Q106: 9.813374458 | S106: 2301.895277 | U106: 11.57516554 | W106: 3632.75519 | Y106: 2512.263732 | AA106: 0 | AC106: 1347.027758 | AE106: 0
A107: 88 | C107: 2301.895277 | E107: 11.57516554 | G107: 3632.75519 | I107: 2512.263732 | K107: 8561.833186 | M107: 1347.027758 | O107: =HLOOKUP(P107,C107:$M$520,A607,0) -> B | P107: 11.57516554 | Q107: 9.905932033 | S107: 2290.320112 | U107: 0 | W107: 3621.180024 | Y107: 2500.688566 | AA107: 8550.25802 | AC107: 1335.452592 | AE107: 1
A108: 89 | C108: 2290.320112 | E108: 2338.73093 | G108: 3621.180024 | I108: 2500.688566 | K108: 8550.25802 | M108: 1335.452592 | O108: =HLOOKUP(P108,C108:$M$520,A608,0) -> F | P108: 1335.452592 | Q108: 9.517678785 | S108: 954.8675197 | U108: 1003.278338 | W108: 2285.727432 | Y108: 1165.235974 | AA108: 7214.805428 | AC108: 0 | AE108: 0
A109: 90 | C109: 954.8675197 | E109: 1003.278338 | G109: 2285.727432 | I109: 1165.235974 | K109: 7214.805428 | M109: 1820.184894 | O109: =HLOOKUP(P109,C109:$M$520,A609,0) -> A | P109: 954.8675197 | Q109: 9.369841319 | S109: 0 | U109: 48.41081809 | W109: 1330.859912 | Y109: 210.3684543 | AA109: 6259.937908 | AC109: 865.317374 | AE109: 0
A110: 91 | C110: 1644.709663 | E110: 48.41081809 | G110: 1330.859912 | I110: 210.3684543 | K110: 6259.937908 | M110: 865.317374 | O110: =HLOOKUP(P110,C110:$M$520,A610,0) -> B | P110: 48.41081809 | Q110: 8.223676472 | S110: 1596.298845 | U110: 0 | W110: 1282.449094 | Y110: 161.9576362 | AA110: 6211.52709 | AC110: 816.9065559 | AE110: 1
A111: 92 | C111: 1596.298845 | E111: 1983.631194 | G111: 1282.449094 | I111: 161.9576362 | K111: 6211.52709 | M111: 816.9065559 | O111: =HLOOKUP(P111,C111:$M$520,A611,0) -> D | P111: 161.9576362 | Q111: 10.37202788 | S111: 1434.341209 | U111: 1821.673558 | W111: 1120.491458 | Y111: 0 | AA111: 6049.569454 | AC111: 654.9489197 | AE111: 0
A112: 93 | C112: 1434.341209 | E112: 1821.673558 | G112: 1120.491458 | I112: 2817.460647 | K112: 6049.569454 | M112: 654.9489197 | O112: =HLOOKUP(P112,C112:$M$520,A612,0) -> F | P112: 654.9489197 | Q112: 8.947814748 | S112: 779.392289 | U112: 1166.724638 | W112: 465.5425384 | Y112: 2162.511727 | AA112: 5394.620535 | AC112: 0 | AE112: 0
A113: 94 | C113: 779.392289 | E113: 1166.724638 | G113: 465.5425384 | I113: 2162.511727 | K113: 5394.620535 | M113: 1318.998615 | O113: =HLOOKUP(P113,C113:$M$520,A613,0) -> C | P113: 465.5425384 | Q113: 9.347729855 | S113: 313.8497506 | U113: 701.1820996 | W113: 0 | Y113: 1696.969189 | AA113: 4929.077996 | AC113: 853.4560765 | AE113: 0
A114: 95 | C114: 313.8497506 | E114: 701.1820996 | G114: 3457.825196 | I114: 1696.969189 | K114: 4929.077996 | M114: 853.4560765 | O114: =HLOOKUP(P114,C114:$M$520,A614,0) -> A | P114: 313.8497506 | Q114: 10.20642991 | S114: 0 | U114: 387.332349 | W114: 3143.975445 | Y114: 1383.119438 | AA114: 4615.228245 | AC114: 539.6063259 | AE114: 0
A115: 96 | C115: 3452.681673 | E115: 387.332349 | G115: 3143.975445 | I115: 1383.119438 | K115: 4615.228245 | M115: 539.6063259 | O115: =HLOOKUP(P115,C115:$M$520,A615,0) -> B | P115: 387.332349 | Q115: 9.007440051 | S115: 3065.349324 | U115: 0 | W115: 2756.643096 | Y115: 995.7870892 | AA115: 4227.895897 | AC115: 152.2739769 | AE115: 0
A116: 97 | C116: 3065.349324 | E116: 1889.565776 | G116: 2756.643096 | I116: 995.7870892 | K116: 4227.895897 | M116: 152.2739769 | O116: =HLOOKUP(P116,C116:$M$520,A616,0) -> F | P116: 152.2739769 | Q116: 9.703195204 | S116: 2913.075347 | U116: 1737.2918 | W116: 2604.369119 | Y116: 843.5131123 | AA116: 4075.62192 | AC116: 0 | AE116: 0
A117: 98 | C117: 2913.075347 | E117: 1737.2918 | G117: 2604.369119 | I117: 843.5131123 | K117: 4075.62192 | M117: 2716.621643 | O117: =HLOOKUP(P117,C117:$M$520,A617,0) -> D | P117: 843.5131123 | Q117: 10.65202847 | S117: 2069.562235 | U117: 893.7786872 | W117: 1760.856007 | Y117: 0 | AA117: 3232.108807 | AC117: 1873.108531 | AE117: 0
A118: 99 | C118: 2069.562235 | E118: 893.7786872 | G118: 1760.856007 | I118: 4967.803316 | K118: 3232.108807 | M118: 1873.108531 | O118: =HLOOKUP(P118,C118:$M$520,A618,0) -> B | P118: 893.7786872 | Q118: 9.823037624 | S118: 1175.783547 | U118: 0 | W118: 867.0773197 | Y118: 4074.024629 | AA118: 2338.33012 | AC118: 979.3298439 | AE118: 0
A119: 100 | C119: 1175.783547 | E119: 1964.88263 | G119: 867.0773197 | I119: 4074.024629 | K119: 2338.33012 | M119: 979.3298439 | O119: =HLOOKUP(P119,C119:$M$520,A619,0) -> C | P119: 867.0773197 | Q119: 9.543451663 | S119: 308.7062276 | U119: 1097.80531 | W119: 0 | Y119: 3206.947309 | AA119: 1471.2528 | AC119: 112.2525242 | AE119: 0
A120: 101 | C120: 308.7062276 | E120: 1097.80531 | G120: 6180.131746 | I120: 3206.947309 | K120: 1471.2528 | M120: 112.2525242 | O120: =HLOOKUP(P120,C120:$M$520,A620,0) -> F | P120: 112.2525242 | Q120: 10.46340096 | S120: 196.4537034 | U120: 985.5527862 | W120: 6067.879222 | Y120: 3094.694785 | AA120: 1359.000276 | AC120: 0 | AE120: 0
A121: 102 | C121: 196.4537034 | E121: 985.5527862 | G121: 6067.879222 | I121: 3094.694785 | K121: 1359.000276 | M121: 2259.804532 | O121: =HLOOKUP(P121,C121:$M$520,A621,0) -> A | P121: 196.4537034 | Q121: 9.798028861 | S121: 0 | U121: 789.0990828 | W121: 5871.425518 | Y121: 2898.241082 | AA121: 1162.546573 | AC121: 2063.350829 | AE121: 0
A122: 103 | C122: 2354.353491 | E122: 789.0990828 | G122: 5871.425518 | I122: 2898.241082 | K122: 1162.546573 | M122: 2063.350829 | O122: =HLOOKUP(P122,C122:$M$520,A622,0) -> B | P122: 789.0990828 | Q122: 10.54217244 | S122: 1565.254408 | U122: 0 | W122: 5082.326435 | Y122: 2109.141999 | AA122: 373.4474899 | AC122: 1274.251746 | AE122: 0
A123: 104 | C123: 1565.254408 | E123: 2610.442162 | G123: 5082.326435 | I123: 2109.141999 | K123: 373.4474899 | M123: 1274.251746 | O123: =HLOOKUP(P123,C123:$M$520,A623,0) -> E | P123: 373.4474899 | Q123: 9.87922204 | S123: 1191.806918 | U123: 2236.994672 | W123: 4708.878945 | Y123: 1735.694509 | AA123: 0 | AC123: 900.8042561 | AE123: 0
A124: 105 | C124: 1191.806918 | E124: 2236.994672 | G124: 4708.878945 | I124: 1735.694509 | K124: 3642.555086 | M124: 900.8042561 | O124: =HLOOKUP(P124,C124:$M$520,A624,0) -> F | P124: 900.8042561 | Q124: 8.375287664 | S124: 291.0026619 | U124: 1336.190416 | W124: 3808.074689 | Y124: 834.8902528 | AA124: 2741.75083 | AC124: 0 | AE124: 0
A125: 106 | C125: 291.0026619 | E125: 1336.190416 | G125: 3808.074689 | I125: 834.8902528 | K125: 2741.75083 | M125: 2404.977771 | O125: =HLOOKUP(P125,C125:$M$520,A625,0) -> A | P125: 291.0026619 | Q125: 10.36476455 | S125: 0 | U125: 1045.187754 | W125: 3517.072027 | Y125: 543.887591 | AA125: 2450.748168 | AC125: 2113.975109 | AE125: 0
A126: 107 | C126: 3226.196332 | E126: 1045.187754 | G126: 3517.072027 | I126: 543.887591 | K126: 2450.748168 | M126: 2113.975109 | O126: =HLOOKUP(P126,C126:$M$520,A626,0) -> D | P126: 543.887591 | Q126: 10.56361031 | S126: 2682.308741 | U126: 501.3001631 | W126: 2973.184436 | Y126: 0 | AA126: 1906.860577 | AC126: 1570.087518 | AE126: 0
A127: 108 | C127: 2682.308741 | E127: 501.3001631 | G127: 2973.184436 | I127: 1358.703667 | K127: 1906.860577 | M127: 1570.087518 | O127: =HLOOKUP(P127,C127:$M$520,A627,0) -> B | P127: 501.3001631 | Q127: 9.73341777 | S127: 2181.008578 | U127: 0 | W127: 2471.884273 | Y127: 857.4035035 | AA127: 1405.560414 | AC127: 1068.787355 | AE127: 0
A128: 109 | C128: 2181.008578 | E128: 2252.522132 | G128: 2471.884273 | I128: 857.4035035 | K128: 1405.560414 | M128: 1068.787355 | O128: =HLOOKUP(P128,C128:$M$520,A628,0) -> D | P128: 857.4035035 | Q128: 11.45831271 | S128: 1323.605075 | U128: 1395.118628 | W128: 1614.48077 | Y128: 0 | AA128: 548.1569108 | AC128: 211.3838511 | AE128: 0
A129: 110 | C129: 1323.605075 | E129: 1395.118628 | G129: 1614.48077 | I129: 3747.953509 | K129: 548.1569108 | M129: 211.3838511 | O129: =HLOOKUP(P129,C129:$M$520,A629,0) -> F | P129: 211.3838511 | Q129: 10.41306307 | S129: 1112.221224 | U129: 1183.734777 | W129: 1403.096919 | Y129: 3536.569658 | AA129: 336.7730597 | AC129: 0 | AE129: 0
A130: 111 | C130: 1112.221224 | E130: 1183.734777 | G130: 1403.096919 | I130: 3536.569658 | K130: 336.7730597 | M130: 2219.382211 | O130: =HLOOKUP(P130,C130:$M$520,A630,0) -> E | P130: 336.7730597 | Q130: 9.310818765 | S130: 775.4481641 | U130: 846.9617173 | W130: 1066.323859 | Y130: 3199.796598 | AA130: 0 | AC130: 1882.609151 | AE130: 0
A131: 112 | C131: 775.4481641 | E131: 846.9617173 | G131: 1066.323859 | I131: 3199.796598 | K131: 4183.152482 | M131: 1882.609151 | O131: =HLOOKUP(P131,C131:$M$520,A631,0) -> A | P131: 775.4481641 | Q131: 9.713107069 | S131: 0 | U131: 71.51355328 | W131: 290.875695 | Y131: 2424.348434 | AA131: 3407.704318 | AC131: 1107.160987 | AE131: 0
A132: 113 | C132: 4457.563683 | E132: 71.51355328 | G132: 290.875695 | I132: 2424.348434 | K132: 3407.704318 | M132: 1107.160987 | O132: =HLOOKUP(P132,C132:$M$520,A632,0) -> B | P132: 71.51355328 | Q132: 8.828483515 | S132: 4386.05013 | U132: 0 | W132: 219.3621417 | Y132: 2352.834881 | AA132: 3336.190765 | AC132: 1035.647434 | AE132: 1
A133: 114 | C133: 4386.05013 | E133: 2052.213028 | G133: 219.3621417 | I133: 2352.834881 | K133: 3336.190765 | M133: 1035.647434 | O133: =HLOOKUP(P133,C133:$M$520,A633,0) -> C | P133: 219.3621417 | Q133: 9.995343886 | S133: 4166.687988 | U133: 1832.850886 | W133: 0 | Y133: 2133.472739 | AA133: 3116.828623 | AC133: 816.285292 | AE133: 0
A134: 115 | C134: 4166.687988 | E134: 1832.850886 | G134: 2140.806063 | I134: 2133.472739 | K134: 3116.828623 | M134: 816.285292 | O134: =HLOOKUP(P134,C134:$M$520,A634,0) -> F | P134: 816.285292 | Q134: 9.019909775 | S134: 3350.402696 | U134: 1016.565594 | W134: 1324.520771 | Y134: 1317.187447 | AA134: 2300.543331 | AC134: 0 | AE134: 0
A135: 116 | C135: 3350.402696 | E135: 1016.565594 | G135: 1324.520771 | I135: 1317.187447 | K135: 2300.543331 | M135: 1463.243174 | O135: =HLOOKUP(P135,C135:$M$520,A635,0) -> B | P135: 1016.565594 | Q135: 11.46048542 | S135: 2333.837102 | U135: 0 | W135: 307.9551764 | Y135: 300.6218528 | AA135: 1283.977737 | AC135: 446.6775801 | AE135: 0
A136: 117 | C136: 2333.837102 | E136: 1142.619311 | G136: 307.9551764 | I136: 300.6218528 | K136: 1283.977737 | M136: 446.6775801 | O136: =HLOOKUP(P136,C136:$M$520,A636,0) -> D | P136: 300.6218528 | Q136: 10.09699516 | S136: 2033.215249 | U136: 841.9974583 | W136: 7.333323597 | Y136: 0 | AA136: 983.3558838 | AC136: 146.0557273 | AE136: 0
A137: 118 | C137: 2033.215249 | E137: 841.9974583 | G137: 7.333323597 | I137: 2378.097913 | K137: 983.3558838 | M137: 146.0557273 | O137: =HLOOKUP(P137,C137:$M$520,A637,0) -> C | P137: 7.333323597 | Q137: 10.63818336 | S137: 2025.881925 | U137: 834.6641347 | W137: 0 | Y137: 2370.76459 | AA137: 976.0225602 | AC137: 138.7224037 | AE137: 1
A138: 119 | C138: 2025.881925 | E138: 834.6641347 | G138: 3612.027175 | I138: 2370.76459 | K138: 976.0225602 | M138: 138.7224037 | O138: =HLOOKUP(P138,C138:$M$520,A638,0) -> F | P138: 138.7224037 | Q138: 10.522415 | S138: 1887.159522 | U138: 695.941731 | W138: 3473.304771 | Y138: 2232.042186 | AA138: 837.3001565 | AC138: 0 | AE138: 0
A139: 120 | C139: 1887.159522 | E139: 695.941731 | G139: 3473.304771 | I139: 2232.042186 | K139: 837.3001565 | M139: 1313.061911 | O139: =HLOOKUP(P139,C139:$M$520,A639,0) -> B | P139: 695.941731 | Q139: 11.16825949 | S139: 1191.217791 | U139: 0 | W139: 2777.36304 | Y139: 1536.100455 | AA139: 141.3584255 | AC139: 617.1201797 | AE139: 0
A140: 121 | C140: 1191.217791 | E140: 2304.497466 | G140: 2777.36304 | I140: 1536.100455 | K140: 141.3584255 | M140: 617.1201797 | O140: =HLOOKUP(P140,C140:$M$520,A640,0) -> E | P140: 141.3584255 | Q140: 10.20387768 | S140: 1049.859365 | U140: 2163.139041 | W140: 2636.004615 | Y140: 1394.74203 | AA140: 0 | AC140: 475.7617543 | AE140: 0
A141: 122 | C141: 1049.859365 | E141: 2163.139041 | G141: 2636.004615 | I141: 1394.74203 | K141: 6670.551937 | M141: 475.7617543 | O141: =HLOOKUP(P141,C141:$M$520,A641,0) -> F | P141: 475.7617543 | Q141: 9.001501336 | S141: 574.097611 | U141: 1687.377287 | W141: 2160.242861 | Y141: 918.9802753 | AA141: 6194.790183 | AC141: 0 | AE141: 0
A142: 123 | C142: 574.097611 | E142: 1687.377287 | G142: 2160.242861 | I142: 918.9802753 | K142: 6194.790183 | M142: 2053.778848 | O142: =HLOOKUP(P142,C142:$M$520,A642,0) -> A | P142: 574.097611 | Q142: 9.952333332 | S142: 0 | U142: 1113.279676 | W142: 1586.14525 | Y142: 344.8826643 | AA142: 5620.692572 | AC142: 1479.681237 | AE142: 0
A143: 124 | C143: 3217.354065 | E143: 1113.279676 | G143: 1586.14525 | I143: 344.8826643 | K143: 5620.692572 | M143: 1479.681237 | O143: =HLOOKUP(P143,C143:$M$520,A643,0) -> D | P143: 344.8826643 | Q143: 8.553558183 | S143: 2872.4714 | U143: 768.3970113 | W143: 1241.262585 | Y143: 0 | AA143: 5275.809908 | AC143: 1134.798573 | AE143: 0
A144: 125 | C144: 2872.4714 | E144: 768.3970113 | G144: 1241.262585 | I144: 3998.509408 | K144: 5275.809908 | M144: 1134.798573 | O144: =HLOOKUP(P144,C144:$M$520,A644,0) -> B | P144: 768.3970113 | Q144: 9.926000086 | S144: 2104.074389 | U144: 0 | W144: 472.8655741 | Y144: 3230.112397 | AA144: 4507.412896 | AC144: 366.4015617 | AE144: 0
A145: 126 | C145: 2104.074389 | E145: 1768.695459 | G145: 472.8655741 | I145: 3230.112397 | K145: 4507.412896 | M145: 366.4015617 | O145: =HLOOKUP(P145,C145:$M$520,A645,0) -> F | P145: 366.4015617 | Q145: 8.918329764 | S145: 1737.672828 | U145: 1402.293897 | W145: 106.4640125 | Y145: 2863.710835 | AA145: 4141.011335 | AC145: 0 | AE145: 0
A146: 127 | C146: 1737.672828 | E146: 1402.293897 | G146: 106.4640125 | I146: 2863.710835 | K146: 4141.011335 | M146: 2954.172358 | O146: =HLOOKUP(P146,C146:$M$520,A646,0) -> C | P146: 106.4640125 | Q146: 11.43822937 | S146: 1631.208815 | U146: 1295.829885 | W146: 0 | Y146: 2757.246822 | AA146: 4034.547322 | AC146: 2847.708346 | AE146: 0
A147: 128 | C147: 1631.208815 | E147: 1295.829885 | G147: 2614.193035 | I147: 2757.246822 | K147: 4034.547322 | M147: 2847.708346 | O147: =HLOOKUP(P147,C147:$M$520,A647,0) -> B | P147: 1295.829885 | Q147: 8.429742176 | S147: 335.3789302 | U147: 0 | W147: 1318.36315 | Y147: 1461.416938 | AA147: 2738.717437 | AC147: 1551.878461 | AE147: 0
A148: 129 | C148: 335.3789302 | E148: 2450.185228 | G148: 1318.36315 | I148: 1461.416938 | K148: 2738.717437 | M148: 1551.878461 | O148: =HLOOKUP(P148,C148:$M$520,A648,0) -> A | P148: =MIN(C148:M148) -> 335.3789302 | Q148: =IF(O148=C$19,EXP(NORMINV(RAND(),C$8,C$9)),IF(O148=E$19,EXP(NORMINV(RAND(),E$8,E$9)),IF(O148=G$19,EXP(NORMINV(RAND(),G$8,G$9)),IF(O148=I$19,EXP(NORMINV(RAND(),I$8,I$9)),IF(O148=K$19,EXP(NORMINV(RAND(),K$8,K$9)),IF(O148=M$19,EXP(NORMINV(RAND(),M$8,M$9)))))))) -> 10.60477482 | S148: =IF(OR(C$3="",C$4=""),"",IF($O148=S$19,0,C148-$P148)) -> 0 | U148: =IF(OR(E$3="",E$4=""),"",IF($O148=U$19,0,E148-$P148)) -> 2114.806298 | W148: =IF(OR(G$3="",G$4=""),"",IF($O148=W$19,0,G148-$P148)) -> 982.9842199 | Y148: =IF(OR(I$3="",I$4=""),"",IF($O148=Y$19,0,I148-$P148)) -> 1126.038007 | AA148: =IF(OR(K$3="",K$4=""),"",IF($O148=AA$19,0,K148-$P148)) -> 2403.338507 | AC148: =IF(OR(M$3="",M$4=""),"",IF($O148=AC$19,0,M148-$P148)) -> 1216.499531 | AE148: =IF(P148>=$P$3,0,1) -> 0
A149: 130 | C149: 2319.244523 | E149: 2114.806298 | G149: 982.9842199 | I149: 1126.038007 | K149: 2403.338507 | M149: 1216.499531 | O149: =HLOOKUP(P149,C149:$M$520,A649,0) -> C | P149: 982.9842199 | Q149: 9.291489764 | S149: 1336.260303 | U149: 1131.822078 | W149: 0 | Y149: 143.0537875 | AA149: 1420.354287 | AC149: 233.5153109 | AE149: 0
A150: 131 | C150: =IF(OR(C$3="",C$4=""),"",IF(S149=0,C$2+C$4*(LN(1/(1-RAND())))^(1/C$3),S149)) -> 1336.260303 | E150: =IF(OR(E$3="",E$4=""),"",IF(U149=0,E$2+E$4*(LN(1/(1-RAND())))^(1/E$3),U149)) -> 1131.822078 | G150: =IF(OR(G$3="",G$4=""),"",IF(W149=0,G$2+G$4*(LN(1/(1-RAND())))^(1/G$3),W149)) -> 4461.564868 | I150: =IF(OR(I$3="",I$4=""),"",IF(Y149=0,I$2+I$4*(LN(1/(1-RAND())))^(1/I$3),Y149)) -> 143.0537875 | K150: =IF(OR(K$3="",K$4=""),"",IF(AA149=0,K$2+K$4*(LN(1/(1-RAND())))^(1/K$3),AA149)) -> 1420.354287 | M150: =IF(OR(M$3="",M$4=""),"",IF(AC149=0,M$2+M$4*(LN(1/(1-RAND())))^(1/M$3),AC149)) -> 233.5153109 | O150: =HLOOKUP(P150,C150:$M$520,A650,0) -> D | P150: 143.0537875 | Q150: 9.232880661 | S150: 1193.206516 | U150: 988.7682907 | W150: 4318.511081 | Y150: 0 | AA150: 1277.3005 | AC150: 90.4615234 | AE150: 0
A151: 132 | C151: 1193.206516 | E151: 988.7682907 | G151: 4318.511081 | I151: 2731.047322 | K151: 1277.3005 | M151: 90.4615234 | O151: =HLOOKUP(P151,C151:$M$520,A651,0) -> F | P151: 90.4615234 | Q151: 9.316402526 | S151: 1102.744993 | U151: 898.3067673 | W151: 4228.049558 | Y151: 2640.585799 | AA151: 1186.838976 | AC151: 0 | AE151: 1
A152: 133 | C152: 1102.744993 | E152: 898.3067673 | G152: 4228.049558 | I152: 2640.585799 | K152: 1186.838976 | M152: 2805.203351 | O152: =HLOOKUP(P152,C152:$M$520,A652,0) -> B | P152: 898.3067673 | Q152: 10.45874122 | S152: 204.4382252 | U152: 0 | W152: 3329.74279 | Y152: 1742.279032 | AA152: 288.532209 | AC152: 1906.896584 | AE152: 0
A153: 134 | C153: 204.4382252 | E153: 2095.167656 | G153: 3329.74279 | I153: 1742.279032 | K153: 288.532209 | M153: 1906.896584 | O153: =HLOOKUP(P153,C153:$M$520,A653,0) -> A | P153: 204.4382252 | Q153: 10.26174388 | S153: 0 | U153: 1890.729431 | W153: 3125.304565 | Y153: 1537.840807 | AA153: 84.09398385 | AC153: 1702.458359 | AE153: 0
A154: 135 | C154: 3792.251994 | E154: 1890.729431 | G154: 3125.304565 | I154: 1537.840807 | K154: 84.09398385 | M154: 1702.458359 | O154: =HLOOKUP(P154,C154:$M$520,A654,0) -> E | P154: 84.09398385 | Q154: 10.59064884 | S154: 3708.158011 | U154: 1806.635447 | W154: 3041.210581 | Y154: 1453.746823 | AA154: 0 | AC154: 1618.364375 | AE154: 1
A155: 136 | C155: 3708.158011 | E155: 1806.635447 | G155: 3041.210581 | I155: 1453.746823 | K155: 3470.278536 | M155: 1618.364375 | O155: =HLOOKUP(P155,C155:$M$520,A655,0) -> D | P155: 1453.746823 | Q155: 10.03402905 | S155: 2254.411188 | U155: 352.8886245 | W155: 1587.463759 | Y155: 0 | AA155: 2016.531714 | AC155: 164.617552 | AE155: 0
A156: 137 | C156: 2254.411188 | E156: 352.8886245 | G156: 1587.463759 | I156: 4112.167392 | K156: 2016.531714 | M156: 164.617552 | O156: =HLOOKUP(P156,C156:$M$520,A656,0) -> F | P156: 164.617552 | Q156: 10.53793055 | S156: 2089.793636 | U156: 188.2710726 | W156: 1422.846207 | Y156: 3947.54984 | AA156: 1851.914162 | AC156: 0 | AE156: 0
A157: 138 | C157: 2089.793636 | E157: 188.2710726 | G157: 1422.846207 | I157: 3947.54984 | K157: 1851.914162 | M157: 1989.611321 | O157: =HLOOKUP(P157,C157:$M$520,A657,0) -> B | P157: 188.2710726 | Q157: 8.973911383 | S157: 1901.522563 | U157: 0 | W157: 1234.575134 | Y157: 3759.278768 | AA157: 1663.643089 | AC157: 1801.340248 | AE157: 0
A158: 139 | C158: 1901.522563 | E158: 2484.855407 | G158: 1234.575134 | I158: 3759.278768 | K158: 1663.643089 | M158: 1801.340248 | O158: =HLOOKUP(P158,C158:$M$520,A658,0) -> C | P158: 1234.575134 | Q158: 10.68407153 | S158: 666.9474293 | U158: 1250.280273 | W158: 0 | Y158: 2524.703634 | AA158: 429.067955 | AC158: 566.7651143 | AE158: 0
A159: 140 | C159: 666.9474293 | E159: 1250.280273 | G159: 3046.043599 | I159: 2524.703634 | K159: 429.067955 | M159: 566.7651143 | O159: =HLOOKUP(P159,C159:$M$520,A659,0) -> E | P159: 429.067955 | Q159: 9.318089397 | S159: 237.8794743 | U159: 821.2123183 | W159: 2616.975644 | Y159: 2095.635679 | AA159: 0 | AC159: 137.6971594 | AE159: 0
A160: 141 | C160: 237.8794743 | E160: 821.2123183 | G160: 2616.975644 | I160: 2095.635679 | K160: 5612.767587 | M160: 137.6971594 | O160: =HLOOKUP(P160,C160:$M$520,A660,0) -> F | P160: 137.6971594 | Q160: 8.748200114 | S160: 100.1823149 | U160: 683.5151589 | W160: 2479.278484 | Y160: 1957.938519 | AA160: 5475.070428 | AC160: 0 | AE160: 0
A161: 142 | C161: 100.1823149 | E161: 683.5151589 | G161: 2479.278484 | I161: 1957.938519 | K161: 5475.070428 | M161: 2610.679668 | O161: =HLOOKUP(P161,C161:$M$520,A661,0) -> A | P161: 100.1823149 | Q161: 10.11683248 | S161: 0 | U161: 583.332844 | W161: 2379.096169 | Y161: 1857.756204 | AA161: 5374.888113 | AC161: 2510.497353 | AE161: 0
A162: 143 | C162: 3751.4921 | E162: 583.332844 | G162: 2379.096169 | I162: 1857.756204 | K162: 5374.888113 | M162: 2510.497353 | O162: =HLOOKUP(P162,C162:$M$520,A662,0) -> B | P162: 583.332844 | Q162: 9.439931082 | S162: 3168.159256 | U162: 0 | W162: 1795.763325 | Y162: 1274.42336 | AA162: 4791.555269 | AC162: 1927.164509 | AE162: 0
A163: 144 | C163: 3168.159256 | E163: 1655.175003 | G163: 1795.763325 | I163: 1274.42336 | K163: 4791.555269 | M163: 1927.164509 | O163: =HLOOKUP(P163,C163:$M$520,A663,0) -> D | P163: 1274.42336 | Q163: 10.75578208 | S163: 1893.735895 | U163: 380.751643 | W163: 521.339965 | Y163: 0 | AA163: 3517.131908 | AC163: 652.7411485 | AE163: 0
A164: 145 | C164: 1893.735895 | E164: 380.751643 | G164: 521.339965 | I164: 4541.904744 | K164: 3517.131908 | M164: 652.7411485 | O164: =HLOOKUP(P164,C164:$M$520,A664,0) -> B | P164: 380.751643 | Q164: 10.19102156 | S164: 1512.984252 | U164: 0 | W164: 140.588322 | Y164: 4161.1531 | AA164: 3136.380265 | AC164: 271.9895054 | AE164: 0
A165: 146 | C165: 1512.984252 | E165: 2141.95507 | G165: 140.588322 | I165: 4161.1531 | K165: 3136.380265 | M165: 271.9895054 | O165: =HLOOKUP(P165,C165:$M$520,A665,0) -> C | P165: 140.588322 | Q165: 8.683113788 | S165: 1372.39593 | U165: 2001.366748 | W165: 0 | Y165: 4020.564778 | AA165: 2995.791943 | AC165: 131.4011835 | AE165: 0
A166: 147 | C166: 1372.39593 | E166: 2001.366748 | G166: 4569.751342 | I166: 4020.564778 | K166: 2995.791943 | M166: 131.4011835 | O166: =HLOOKUP(P166,C166:$M$520,A666,0) -> F | P166: 131.4011835 | Q166: 9.088688946 | S166: 1240.994747 | U166: 1869.965565 | W166: 4438.350158 | Y166: 3889.163595 | AA166: 2864.39076 | AC166: 0 | AE166: 0
A167: 148 | C167: 1240.994747 | E167: 1869.965565 | G167: 4438.350158 | I167: 3889.163595 | K167: 2864.39076 | M167: 1860.154556 | O167: =HLOOKUP(P167,C167:$M$520,A667,0) -> A | P167: 1240.994747 | Q167: 10.70938306 | S167: 0 | U167: 628.970818 | W167: 3197.355411 | Y167: 2648.168848 | AA167: 1623.396013 | AC167: 619.1598096 | AE167: 0
A168: 149 | C168: 4834.954847 | E168: 628.970818 | G168: 3197.355411 | I168: 2648.168848 | K168: 1623.396013 | M168: 619.1598096 | O168: =HLOOKUP(P168,C168:$M$520,A668,0) -> F | P168: 619.1598096 | Q168: 11.46649925 | S168: 4215.795038 | U168: 9.81100841 | W168: 2578.195602 | Y168: 2029.009039 | AA168: 1004.236204 | AC168: 0 | AE168: 0
A169: 150 | C169: 4215.795038 | E169: 9.81100841 | G169: 2578.195602 | I169: 2029.009039 | K169: 1004.236204 | M169: 2749.713987 | O169: =HLOOKUP(P169,C169:$M$520,A669,0) -> B | P169: 9.81100841 | Q169: 10.44513105 | S169: 4205.984029 | U169: 0 | W169: 2568.384593 | Y169: 2019.19803 | AA169: 994.4251951 | AC169: 2739.902979 | AE169: 1
A170: 151 | C170: 4205.984029 | E170: 1764.127332 | G170: 2568.384593 | I170: 2019.19803 | K170: 994.4251951 | M170: 2739.902979 | O170: =HLOOKUP(P170,C170:$M$520,A670,0) -> E | P170: 994.4251951 | Q170: 9.264737739 | S170: 3211.558834 | U170: 769.7021368 | W170: 1573.959398 | Y170: 1024.772835 | AA170: 0 | AC170: 1745.477784 | AE170: 0
A171: 152 | C171: 3211.558834 | E171: 769.7021368 | G171: 1573.959398 | I171: 1024.772835 | K171: 2390.512 | M171: 1745.477784 | O171: =HLOOKUP(P171,C171:$M$520,A671,0) -> B | P171: 769.7021368 | Q171: 8.446941761 | S171: 2441.856697 | U171: 0 | W171: 804.2572613 | Y171: 255.0706982 | AA171: 1620.809863 | AC171: 975.7756468 | AE171: 0
A172: 153 | C172: 2441.856697 | E172: 2235.438984 | G172: 804.2572613 | I172: 255.0706982 | K172: 1620.809863 | M172: 975.7756468 | O172: =HLOOKUP(P172,C172:$M$520,A672,0) -> D | P172: 255.0706982 | Q172: 10.10276387 | S172: 2186.785999 | U172: 1980.368285 | W172: 549.1865631 | Y172: 0 | AA172: 1365.739165 | AC172: 720.7049486 | AE172: 0
A173: 154 | C173: 2186.785999 | E173: 1980.368285 | G173: 549.1865631 | I173: 3211.200492 | K173: 1365.739165 | M173: 720.7049486 | O173: =HLOOKUP(P173,C173:$M$520,A673,0) -> C | P173: 549.1865631 | Q173: 11.32291364 | S173: 1637.599436 | U173: 1431.181722 | W173: 0 | Y173: 2662.013929 | AA173: 816.5526014 | AC173: 171.5183855 | AE173: 0
A174: 155 | C174: 1637.599436 | E174: 1431.181722 | G174: 5547.619137 | I174: 2662.013929 | K174: 816.5526014 | M174: 171.5183855 | O174: =HLOOKUP(P174,C174:$M$520,A674,0) -> F | P174: 171.5183855 | Q174: 9.625433167 | S174: 1466.08105 | U174: 1259.663337 | W174: 5376.100752 | Y174: 2490.495543 | AA174: 645.0342159 | AC174: 0 | AE174: 0
A175: 156 | C175: 1466.08105 | E175: 1259.663337 | G175: 5376.100752 | I175: 2490.495543 | K175: 645.0342159 | M175: 2367.862136 | O175: =HLOOKUP(P175,C175:$M$520,A675,0) -> E | P175: 645.0342159 | Q175: 9.904118349 | S175: 821.0468345 | U175: 614.629121 | W175: 4731.066536 | Y175: 1845.461327 | AA175: 0 | AC175: 1722.82792 | AE175: 0
A176: 157 | C176: 821.0468345 | E176: 614.629121 | G176: 4731.066536 | I176: 1845.461327 | K176: 2445.959488 | M176: 1722.82792 | O176: =HLOOKUP(P176,C176:$M$520,A676,0) -> B | P176: 614.629121 | Q176: 9.67794906 | S176: 206.4177135 | U176: 0 | W176: 4116.437415 | Y176: 1230.832206 | AA176: 1831.330367 | AC176: 1108.198799 | AE176: 0
A177: 158 | C177: 206.4177135 | E177: 2601.99001 | G177: 4116.437415 | I177: 1230.832206 | K177: 1831.330367 | M177: 1108.198799 | O177: =HLOOKUP(P177,C177:$M$520,A677,0) -> A | P177: 206.4177135 | Q177: 10.94584241 | S177: 0 | U177: 2395.572297 | W177: 3910.019702 | Y177: 1024.414493 | AA177: 1624.912654 | AC177: 901.7810852 | AE177: 0
A178: 159 | C178: 2797.714949 | E178: 2395.572297 | G178: 3910.019702 | I178: 1024.414493 | K178: 1624.912654 | M178: 901.7810852 | O178: =HLOOKUP(P178,C178:$M$520,A678,0) -> F | P178: 901.7810852 | Q178: 11.57248596 | S178: 1895.933864 | U178: 1493.791212 | W178: 3008.238616 | Y178: 122.6334074 | AA178: 723.1315683 | AC178: 0 | AE178: 0
A179: 160 | C179: 1895.933864 | E179: 1493.791212 | G179: 3008.238616 | I179: 122.6334074 | K179: 723.1315683 | M179: 2280.958774 | O179: =HLOOKUP(P179,C179:$M$520,A679,0) -> D | P179: 122.6334074 | Q179: 9.763111287 | S179: 1773.300457 | U179: 1371.157804 | W179: 2885.605209 | Y179: 0 | AA179: 600.4981609 | AC179: 2158.325366 | AE179: 0
A180: 161 | C180: 1773.300457 | E180: 1371.157804 | G180: 2885.605209 | I180: 3174.195548 | K180: 600.4981609 | M180: 2158.325366 | O180: =HLOOKUP(P180,C180:$M$520,A680,0) -> E | P180: 600.4981609 | Q180: 10.13548069 | S180: 1172.802296 | U180: 770.6596433 | W180: 2285.107048 | Y180: 2573.697387 | AA180: 0 | AC180: 1557.827205 | AE180: 0
A181: 162 | C181: 1172.802296 | E181: 770.6596433 | G181: 2285.107048 | I181: 2573.697387 | K181: 4293.222101 | M181: 1557.827205 | O181: =HLOOKUP(P181,C181:$M$520,A681,0) -> B | P181: 770.6596433 | Q181: 8.879753855 | S181: 402.1426526 | U181: 0 | W181: 1514.447405 | Y181: 1803.037744 | AA181: 3522.562458 | AC181: 787.1675621 | AE181: 0
A182: 163 | C182: 402.1426526 | E182: 2180.40027 | G182: 1514.447405 | I182: 1803.037744 | K182: 3522.562458 | M182: 787.1675621 | O182: =HLOOKUP(P182,C182:$M$520,A682,0) -> A | P182: 402.1426526 | Q182: 9.974943022 | S182: 0 | U182: 1778.257617 | W182: 1112.304752 | Y182: 1400.895092 | AA182: 3120.419806 | AC182: 385.0249096 | AE182: 0
A183: 164 | C183: 4127.303505 | E183: 1778.257617 | G183: 1112.304752 | I183: 1400.895092 | K183: 3120.419806 | M183: 385.0249096 | O183: =HLOOKUP(P183,C183:$M$520,A683,0) -> F | P183: 385.0249096 | Q183: 9.825246283 | S183: 3742.278596 | U183: 1393.232707 | W183: 727.2798426 | Y183: 1015.870182 | AA183: 2735.394896 | AC183: 0 | AE183: 0
A184: 165 | C184: 3742.278596 | E184: 1393.232707 | G184: 727.2798426 | I184: 1015.870182 | K184: 2735.394896 | M184: 3311.314682 | O184: =HLOOKUP(P184,C184:$M$520,A684,0) -> C | P184: 727.2798426 | Q184: 9.658592966 | S184: 3014.998753 | U184: 665.9528649 | W184: 0 | Y184: 288.5903395 | AA184: 2008.115053 | AC184: 2584.034839 | AE184: 0
A185: 166 | C185: 3014.998753 | E185: 665.9528649 | G185: 3010.400478 | I185: 288.5903395 | K185: 2008.115053 | M185: 2584.034839 | O185: =HLOOKUP(P185,C185:$M$520,A685,0) -> D | P185: 288.5903395 | Q185: 10.52551329 | S185: 2726.408414 | U185: 377.3625254 | W185: 2721.810138 | Y185: 0 | AA185: 1719.524714 | AC185: 2295.4445 | AE185: 0
A186: 167 | C186: 2726.408414 | E186: 377.3625254 | G186: 2721.810138 | I186: 2685.881234 | K186: 1719.524714 | M186: 2295.4445 | O186: =HLOOKUP(P186,C186:$M$520,A686,0) -> B | P186: 377.3625254 | Q186: 10.61166037 | S186: 2349.045888 | U186: 0 | W186: 2344.447613 | Y186: 2308.518709 | AA186: 1342.162189 | AC186: 1918.081974 | AE186: 0
A187: 168 | C187: 2349.045888 | E187: 1899.637551 | G187: 2344.447613 | I187: 2308.518709 | K187: 1342.162189 | M187: 1918.081974 | O187: =HLOOKUP(P187,C187:$M$520,A687,0) -> E | P187: 1342.162189 | Q187: 11.18596441 | S187: 1006.8837 | U187: 557.4753621 | W187: 1002.285424 | Y187: 966.3565204 | AA187: 0 | AC187: 575.9197855 | AE187: 0
A188: 169 | C188: 1006.8837 | E188: 557.4753621 | G188: 1002.285424 | I188: 966.3565204 | K188: 3948.657929 | M188: 575.9197855 | O188: =HLOOKUP(P188,C188:$M$520,A688,0) -> B | P188: 557.4753621 | Q188: 9.499834605 | S188: 449.4083376 | U188: 0 | W188: 444.8100624 | Y188: 408.8811583 | AA188: 3391.182567 | AC188: 18.44442343 | AE188: 0
A189: 170 | C189: 449.4083376 | E189: 2086.785459 | G189: 444.8100624 | I189: 408.8811583 | K189: 3391.182567 | M189: 18.44442343 | O189: =HLOOKUP(P189,C189:$M$520,A689,0) -> F | P189: 18.44442343 | Q189: 9.604414163 | S189: 430.9639141 | U189: 2068.341036 | W189: 426.365639 | Y189: 390.4367349 | AA189: 3372.738143 | AC189: 0 | AE189: 1
A190: 171 | C190: 430.9639141 | E190: 2068.341036 | G190: 426.365639 | I190: 390.4367349 | K190: 3372.738143 | M190: 3009.363651 | O190: =HLOOKUP(P190,C190:$M$520,A690,0) -> D | P190: 390.4367349 | Q190: 10.52018585 | S190: 40.52717926 | U190: 1677.904301 | W190: 35.92890411 | Y190: 0 | AA190: 2982.301409 | AC190: 2618.926916 | AE190: 0
A191: 172 | C191: 40.52717926 | E191: 1677.904301 | G191: 35.92890411 | I191: 1707.077258 | K191: 2982.301409 | M191: 2618.926916 | O191: =HLOOKUP(P191,C191:$M$520,A691,0) -> C | P191: 35.92890411 | Q191: 9.700557047 | S191: 4.598275152 | U191: 1641.975397 | W191: 0 | Y191: 1671.148354 | AA191: 2946.372504 | AC191: 2582.998012 | AE191: 1
A192: 173 | C192: 4.598275152 | E192: 1641.975397 | G192: 5926.207022 | I192: 1671.148354 | K192: 2946.372504 | M192: 2582.998012 | O192: =HLOOKUP(P192,C192:$M$520,A692,0) -> A | P192: 4.598275152 | Q192: 10.71474065 | S192: 0 | U192: 1637.377122 | W192: 5921.608747 | Y192: 1666.550079 | AA192: 2941.774229 | AC192: 2578.399737 | AE192: 1
A193: 174 | C193: 4428.192632 | E193: 1637.377122 | G193: 5921.608747 | I193: 1666.550079 | K193: 2941.774229 | M193: 2578.399737 | O193: =HLOOKUP(P193,C193:$M$520,A693,0) -> B | P193: 1637.377122 | Q193: 10.70888989 | S193: 2790.815511 | U193: 0 | W193: 4284.231625 | Y193: 29.17295726 | AA193: 1304.397108 | AC193: 941.022615 | AE193: 0
A194: 175 | C194: 2790.815511 | E194: 1705.198047 | G194: 4284.231625 | I194: 29.17295726 | K194: 1304.397108 | M194: 941.022615 | O194: =HLOOKUP(P194,C194:$M$520,A694,0) -> D | P194: 29.17295726 | Q194: 10.35900087 | S194: 2761.642553 | U194: 1676.02509 | W194: 4255.058668 | Y194: 0 | AA194: 1275.22415 | AC194: 911.8496577 | AE194: 1
A195: 176 | C195: 2761.642553 | E195: 1676.02509 | G195: 4255.058668 | I195: 6057.472402 | K195: 1275.22415 | M195: 911.8496577 | O195: =HLOOKUP(P195,C195:$M$520,A695,0) -> F | P195: 911.8496577 | Q195: 8.800856115 | S195: 1849.792896 | U195: 764.1754325 | W195: 3343.20901 | Y195: 5145.622745 | AA195: 363.3744927 | AC195: 0 | AE195: 0
A196: 177 | C196: 1849.792896 | E196: 764.1754325 | G196: 3343.20901 | I196: 5145.622745 | K196: 363.3744927 | M196: 2479.306465 | O196: =HLOOKUP(P196,C196:$M$520,A696,0) -> E | P196: 363.3744927 | Q196: 10.40283379 | S196: 1486.418403 | U196: 400.8009398 | W196: 2979.834517 | Y196: 4782.248252 | AA196: 0 | AC196: 2115.931973 | AE196: 0
A197: 178 | C197: 1486.418403 | E197: 400.8009398 | G197: 2979.834517 | I197: 4782.248252 | K197: 1968.733376 | M197: 2115.931973 | O197: =HLOOKUP(P197,C197:$M$520,A697,0) -> B | P197: 400.8009398 | Q197: 9.741688635 | S197: 1085.617463 | U197: 0 | W197: 2579.033578 | Y197: 4381.447312 | AA197: 1567.932436 | AC197: 1715.131033 | AE197: 0
A198: 179 | C198: 1085.617463 | E198: 2010.103491 | G198: 2579.033578 | I198: 4381.447312 | K198: 1567.932436 | M198: 1715.131033 | O198: =HLOOKUP(P198,C198:$M$520,A698,0) -> A | P198: 1085.617463 | Q198: 9.500323097 | S198: 0 | U198: 924.4860277 | W198: 1493.416114 | Y198: 3295.829849 | AA198: 482.3149731 | AC198: 629.5135697 | AE198: 0
A199: 180 | C199: 3157.999756 | E199: 924.4860277 | G199: 1493.416114 | I199: 3295.829849 | K199: 482.3149731 | M199: 629.5135697 | O199: =HLOOKUP(P199,C199:$M$520,A699,0) -> E | P199: 482.3149731 | Q199: 8.648858686 | S199: 2675.684783 | U199: 442.1710547 | W199: 1011.101141 | Y199: 2813.514876 | AA199: 0 | AC199: 147.1985967 | AE199: 0
A200: 181 | C200: 2675.684783 | E200: 442.1710547 | G200: 1011.101141 | I200: 2813.514876 | K200: 4012.398884 | M200: 147.1985967 | O200: =HLOOKUP(P200,C200:$M$520,A700,0) -> F | P200: 147.1985967 | Q200: 9.93860742 | S200: 2528.486186 | U200: 294.972458 | W200: 863.9025446 | Y200: 2666.316279 | AA200: 3865.200288 | AC200: 0 | AE200: 0
A201: 182 | C201: 2528.486186 | E201: 294.972458 | G201: 863.9025446 | I201: 2666.316279 | K201: 3865.200288 | M201: 2282.840404 | O201: =HLOOKUP(P201,C201:$M$520,A701,0) -> B | P201: 294.972458 | Q201: 11.9388161 | S201: 2233.513728 | U201: 0 | W201: 568.9300866 | Y201: 2371.343821 | AA201: 3570.22783 | AC201: 1987.867946 | AE201: 0
A202: 183 | C202: 2233.513728 | E202: 1854.755648 | G202: 568.9300866 | I202: 2371.343821 | K202: 3570.22783 | M202: 1987.867946 | O202: =HLOOKUP(P202,C202:$M$520,A702,0) -> C | P202: 568.9300866 | Q202: 10.42887031 | S202: 1664.583642 | U202: 1285.825562 | W202: 0 | Y202: 1802.413735 | AA202: 3001.297743 | AC202: 1418.93786 | AE202: 0
A203: 184 | C203: 1664.583642 | E203: 1285.825562 | G203: 5062.017858 | I203: 1802.413735 | K203: 3001.297743 | M203: 1418.93786 | O203: =HLOOKUP(P203,C203:$M$520,A703,0) -> B | P203: 1285.825562 | Q203: 11.09023592 | S203: 378.75808 | U203: 0 | W203: 3776.192296 | Y203: 516.5881728 | AA203: 1715.472181 | AC203: 133.112298 | AE203: 0
A204: 185 | C204: 378.75808 | E204: 1737.947556 | G204: 3776.192296 | I204: 516.5881728 | K204: 1715.472181 | M204: 133.112298 | O204: =HLOOKUP(P204,C204:$M$520,A704,0) -> F | P204: 133.112298 | Q204: 10.59339916 | S204: 245.645782 | U204: 1604.835258 | W204: 3643.079998 | Y204: 383.4758748 | AA204: 1582.359883 | AC204: 0 | AE204: 0
... 815 more rows

Sheet GOF test
D2: Chi-Square Goodness-of-Fit Test of system´s TTF´s to an Exponential distribution
E4: System´s
E5: TTF´s | G5: UIL | H5: f(i) | I5: f(i)% | J5: F(i) | K5: F(i)% | Q5: Auxiliary table
D6: 1 | E6: ='Serial system'!P20 -> 1757.134784 | G6: =M7+($M$6-$M$7)/10 -> 249.4913235 | H6: =J6 -> 171 | I6: =H6/$J$15 -> 0.3489795918 | J6: =FREQUENCY($E$16:$E$505,G6) -> 171 | K6: =J6/$J$15 -> 0.3489795918 | L6: Max. = | M6: =MAX(E16:E505) -> 2476.14889 | Q6: =EXPONDIST(G6,1/$M$9,1)*100 -> 38.09850492 | R6: =Q6 -> 38.09850492 | S6: =R6*COUNT(E16:E505)/100 -> 186.6826741 | T6: =(H6-S6)^2/S6 -> 1.317456314
D7: 2 | E7: ='Serial system'!P21 -> 831.2346052 | G7: =G6+($M$6-$M$7)/10 -> 496.8977198 | H7: =J7-J6 -> 106 | I7: 0.2163265306 | J7: =FREQUENCY($E$16:$E$505,G7) -> 277 | K7: 0.5653061224 | L7: Mín. = | M7: =MIN(E16:E505) -> 2.084927322 | Q7: 61.52815887 | R7: =Q7-Q6 -> 23.42965395 | S7: =R7*COUNT(E17:E506)/100 -> 114.5710078 | T7: 0.6411934055
D8: 3 | E8: ='Serial system'!P22 -> 820.8341259 | G8: 744.304116 | H8: 82 | I8: 0.1673469388 | J8: 359 | K8: 0.7326530612 | Q8: 76.08971224 | R8: =Q8-Q7 -> 14.56155337 | S8: 71.06038045 | T8: 1.684135028
D9: 4 | E9: ='Serial system'!P23 -> 338.7880557 | G9: 991.7105122 | H9: 59 | I9: 0.1204081633 | J9: 418 | K9: 0.8530612245 | L9: MTTF = | M9: ='Serial system'!P11 -> 520.1790557 | N9: (analítico) | Q9: 85.13973223 | R9: 9.050019991 | S9: 44.07359736 | T9: 5.055123911
D10: 5 | E10: ='Serial system'!P24 -> 231.1639059 | G10: 1239.116908 | H10: 35 | I10: 0.07142857143 | J10: 453 | K10: 0.9244897959 | L10: MTTF = | M10: =AVERAGE(E16:E505) -> 519.3814684 | N10: (simulação) | Q10: 90.76432871 | R10: 5.62459648 | S10: 27.33553889 | T10: 2.148996011
D11: 6 | E11: ='Serial system'!P25 -> 375.9797241 | G11: 1486.523305 | H11: 25 | I11: 0.05102040816 | J11: 478 | K11: 0.9755102041 | Q11: 94.26002105 | R11: 3.495692341 | S11: 16.95410785 | T11: 3.818330108
D12: 7 | E12: ='Serial system'!P26 -> 144.6316271 | G12: 1733.929701 | H12: 6 | I12: 0.01224489796 | J12: 484 | K12: 0.987755102 | L12: Mission = | M12: ='Serial system'!P3 -> 100 | Q12: 96.43259734 | R12: 2.172576288 | S12: 10.51526923 | T12: 1.938862029
D13: 8 | E13: ='Serial system'!P27 -> 904.0264266 | G13: 1981.336097 | H13: 3 | I13: 0.00612244898 | J13: 487 | K13: 0.993877551 | L13: F = | M13: =1-EXP(-M12/M9) -> 0.174892416 | N13: (by the analytical method) | Q13: 97.78285568 | R13: 1.350258337 | S13: 6.521747766 | T13: 1.901745939
D14: 9 | E14: ='Serial system'!P28 -> 86.22936753 | G14: 2228.742493 | H14: 2 | I14: 0.004081632653 | J14: 489 | K14: 0.9979591837 | L14: F = | M14: =FREQUENCY(E16:E505,M12)/COUNTIF(E16:E505,">0") -> 0.1530612245 | N14: (by MC simulation) | Q14: 98.62204259 | R14: 0.8391869073 | S14: 4.044880893 | T14: 1.033785167
D15: 10 | E15: ='Serial system'!P29 -> 884.9724341 | G15: 2476.14889 | H15: 1 | I15: 0.002040816327 | J15: 490 | K15: 1 | Q15: 99.14359809 | R15: 0.5215555026 | S15: 2.508681968 | T15: 0.9072976602
D16: 11 | E16: ='Serial system'!P30 -> 469.0960162 | T16: =SUM(T6:T15) -> 20.44692557
D17: 12 | E17: ='Serial system'!P31 -> 526.8817546 | S17: Degrees of freedom = | T17: 9
D18: 13 | E18: ='Serial system'!P32 -> 645.7164906 | L18: Average = | M18: =AVERAGE(E16:E505) -> 519.3814684
D19: 14 | E19: ='Serial system'!P33 -> 43.23488942 | L19: St.Dev. = | M19: =STDEV(E16:E505) -> 427.9488224
D20: 15 | E20: ='Serial system'!P34 -> 210.6183446 | L20: Level of significance = | M20: 0.05
D21: 16 | E21: ='Serial system'!P35 -> 1147.493022 | L21: Critical value of Q2 = | M21: =CHIINV(M20,T17) -> 16.9189776
D22: 17 | E22: ='Serial system'!P36 -> 382.9397186 | L22: Q2 obtained = | M22: =T16 -> 20.44692557
D23: 18 | E23: ='Serial system'!P37 -> 68.32404196 | L23: Conclusion = | M23: =IF(M22>M21,"The fit is not good enough","The fit is sufficiently good") -> The fit is not good enough
D24: 19 | E24: ='Serial system'!P38 -> 612.7435168 | L24: Statistical proof = | M24: =IF(M22>M21,"-",CHIDIST(M22,T17)) -> -
D25: 20 | E25: ='Serial system'!P39 -> 90.22741114
D26: 21 | E26: ='Serial system'!P40 -> 856.883421
D27: 22 | E27: ='Serial system'!P41 -> 534.8231265
D28: 23 | E28: ='Serial system'!P42 -> 7.808121888
D29: 24 | E29: ='Serial system'!P43 -> 449.1239541
D30: 25 | E30: ='Serial system'!P44 -> 646.0075894
D31: 26 | E31: ='Serial system'!P45 -> 732.0376654
D32: 27 | E32: ='Serial system'!P46 -> 110.2995535
D33: 28 | E33: ='Serial system'!P47 -> 314.3236597
D34: 29 | E34: ='Serial system'!P48 -> 253.7143505
D35: 30 | E35: ='Serial system'!P49 -> 988.6376221
D36: 31 | E36: ='Serial system'!P50 -> 492.5799343
D37: 32 | E37: ='Serial system'!P51 -> 653.7652518
D38: 33 | E38: ='Serial system'!P52 -> 61.92422708
D39: 34 | E39: ='Serial system'!P53 -> 970.7981658
D40: 35 | E40: ='Serial system'!P54 -> 418.0259061
D41: 36 | E41: ='Serial system'!P55 -> 315.1569493
D42: 37 | E42: ='Serial system'!P56 -> 255.2741605
D43: 38 | E43: ='Serial system'!P57 -> 1312.478097
D44: 39 | E44: ='Serial system'!P58 -> 620.9942642
D45: 40 | E45: ='Serial system'!P59 -> 282.6469063
D46: 41 | E46: ='Serial system'!P60 -> 559.9726991
D47: 42 | E47: ='Serial system'!P61 -> 206.4234153
D48: 43 | E48: ='Serial system'!P62 -> 108.1069957
D49: 44 | E49: ='Serial system'!P63 -> 278.938902
D50: 45 | E50: ='Serial system'!P64 -> 321.8162898
D51: 46 | E51: ='Serial system'!P65 -> 798.9246675
D52: 47 | E52: ='Serial system'!P66 -> 1388.38275
D53: 48 | E53: ='Serial system'!P67 -> 660.3240678
D54: 49 | E54: ='Serial system'!P68 -> 14.23580486
D55: 50 | E55: ='Serial system'!P69 -> 311.7768406
D56: 51 | E56: ='Serial system'!P70 -> 445.0556742
D57: 52 | E57: ='Serial system'!P71 -> 88.59928603
D58: 53 | E58: ='Serial system'!P72 -> 1405.67126
D59: 54 | E59: ='Serial system'!P73 -> 98.33761144
D60: 55 | E60: ='Serial system'!P74 -> 258.6001146
D61: 56 | E61: ='Serial system'!P75 -> 890.4735333
D62: 57 | E62: ='Serial system'!P76 -> 1216.453925
D63: 58 | E63: ='Serial system'!P77 -> 373.7177753
D64: 59 | E64: ='Serial system'!P78 -> 1064.06572
D65: 60 | E65: ='Serial system'!P79 -> 204.3560254
D66: 61 | E66: ='Serial system'!P80 -> 25.53668869
D67: 62 | E67: ='Serial system'!P81 -> 38.04190803
D68: 63 | E68: ='Serial system'!P82 -> 586.601848
D69: 64 | E69: ='Serial system'!P83 -> 1706.449329
D70: 65 | E70: ='Serial system'!P84 -> 251.4338917
D71: 66 | E71: ='Serial system'!P85 -> 173.0140719
D72: 67 | E72: ='Serial system'!P86 -> 1458.107494
D73: 68 | E73: ='Serial system'!P87 -> 56.92118279
D74: 69 | E74: ='Serial system'!P88 -> 429.0315348
D75: 70 | E75: ='Serial system'!P89 -> 74.43905238
D76: 71 | E76: ='Serial system'!P90 -> 136.6370234
D77: 72 | E77: ='Serial system'!P91 -> 1169.542001
D78: 73 | E78: ='Serial system'!P92 -> 893.354009
D79: 74 | E79: ='Serial system'!P93 -> 79.29745848
D80: 75 | E80: ='Serial system'!P94 -> 388.961634
D81: 76 | E81: ='Serial system'!P95 -> 153.6643357
D82: 77 | E82: ='Serial system'!P96 -> 264.5032962
D83: 78 | E83: ='Serial system'!P97 -> 303.8900528
D84: 79 | E84: ='Serial system'!P98 -> 1138.687109
D85: 80 | E85: ='Serial system'!P99 -> 456.6982679
D86: 81 | E86: ='Serial system'!P100 -> 1334.923125
D87: 82 | E87: ='Serial system'!P101 -> 94.4649295
D88: 83 | E88: ='Serial system'!P102 -> 77.59086209
D89: 84 | E89: ='Serial system'!P103 -> 299.8257725
D90: 85 | E90: ='Serial system'!P104 -> 286.3090151
D91: 86 | E91: ='Serial system'!P105 -> 221.9640142
D92: 87 | E92: ='Serial system'!P106 -> 1354.609566
D93: 88 | E93: ='Serial system'!P107 -> 11.57516554
D94: 89 | E94: ='Serial system'!P108 -> 1335.452592
D95: 90 | E95: ='Serial system'!P109 -> 954.8675197
D96: 91 | E96: ='Serial system'!P110 -> 48.41081809
D97: 92 | E97: ='Serial system'!P111 -> 161.9576362
D98: 93 | E98: ='Serial system'!P112 -> 654.9489197
D99: 94 | E99: ='Serial system'!P113 -> 465.5425384
D100: 95 | E100: ='Serial system'!P114 -> 313.8497506
D101: 96 | E101: ='Serial system'!P115 -> 387.332349
D102: 97 | E102: ='Serial system'!P116 -> 152.2739769
D103: 98 | E103: ='Serial system'!P117 -> 843.5131123
D104: 99 | E104: ='Serial system'!P118 -> 893.7786872
D105: 100 | E105: ='Serial system'!P119 -> 867.0773197
D106: 101 | E106: ='Serial system'!P120 -> 112.2525242
D107: 102 | E107: ='Serial system'!P121 -> 196.4537034
D108: 103 | E108: ='Serial system'!P122 -> 789.0990828
D109: 104 | E109: ='Serial system'!P123 -> 373.4474899
D110: 105 | E110: ='Serial system'!P124 -> 900.8042561
D111: 106 | E111: ='Serial system'!P125 -> 291.0026619
D112: 107 | E112: ='Serial system'!P126 -> 543.887591
D113: 108 | E113: ='Serial system'!P127 -> 501.3001631
D114: 109 | E114: ='Serial system'!P128 -> 857.4035035
D115: 110 | E115: ='Serial system'!P129 -> 211.3838511
D116: 111 | E116: ='Serial system'!P130 -> 336.7730597
D117: 112 | E117: ='Serial system'!P131 -> 775.4481641
D118: 113 | E118: ='Serial system'!P132 -> 71.51355328
D119: 114 | E119: ='Serial system'!P133 -> 219.3621417
D120: 115 | E120: ='Serial system'!P134 -> 816.285292
D121: 116 | E121: ='Serial system'!P135 -> 1016.565594
D122: 117 | E122: ='Serial system'!P136 -> 300.6218528
D123: 118 | E123: ='Serial system'!P137 -> 7.333323597
D124: 119 | E124: ='Serial system'!P138 -> 138.7224037
D125: 120 | E125: ='Serial system'!P139 -> 695.941731
D126: 121 | E126: ='Serial system'!P140 -> 141.3584255
D127: 122 | E127: ='Serial system'!P141 -> 475.7617543
D128: 123 | E128: ='Serial system'!P142 -> 574.097611
D129: 124 | E129: ='Serial system'!P143 -> 344.8826643
D130: 125 | E130: ='Serial system'!P144 -> 768.3970113
D131: 126 | E131: ='Serial system'!P145 -> 366.4015617
D132: 127 | E132: ='Serial system'!P146 -> 106.4640125
D133: 128 | E133: ='Serial system'!P147 -> 1295.829885
D134: 129 | E134: ='Serial system'!P148 -> 335.3789302
D135: 130 | E135: ='Serial system'!P149 -> 982.9842199
D136: 131 | E136: ='Serial system'!P150 -> 143.0537875
D137: 132 | E137: ='Serial system'!P151 -> 90.4615234
D138: 133 | E138: ='Serial system'!P152 -> 898.3067673
D139: 134 | E139: ='Serial system'!P153 -> 204.4382252
D140: 135 | E140: ='Serial system'!P154 -> 84.09398385
D141: 136 | E141: ='Serial system'!P155 -> 1453.746823
D142: 137 | E142: ='Serial system'!P156 -> 164.617552
D143: 138 | E143: ='Serial system'!P157 -> 188.2710726
D144: 139 | E144: ='Serial system'!P158 -> 1234.575134
D145: 140 | E145: ='Serial system'!P159 -> 429.067955
D146: 141 | E146: ='Serial system'!P160 -> 137.6971594
D147: 142 | E147: ='Serial system'!P161 -> 100.1823149
D148: 143 | E148: ='Serial system'!P162 -> 583.332844
D149: 144 | E149: ='Serial system'!P163 -> 1274.42336
D150: 145 | E150: ='Serial system'!P164 -> 380.751643
D151: 146 | E151: ='Serial system'!P165 -> 140.588322
D152: 147 | E152: ='Serial system'!P166 -> 131.4011835
D153: 148 | E153: ='Serial system'!P167 -> 1240.994747
D154: 149 | E154: ='Serial system'!P168 -> 619.1598096
D155: 150 | E155: ='Serial system'!P169 -> 9.81100841
D156: 151 | E156: ='Serial system'!P170 -> 994.4251951
D157: 152 | E157: ='Serial system'!P171 -> 769.7021368
D158: 153 | E158: ='Serial system'!P172 -> 255.0706982
D159: 154 | E159: ='Serial system'!P173 -> 549.1865631
D160: 155 | E160: ='Serial system'!P174 -> 171.5183855
D161: 156 | E161: ='Serial system'!P175 -> 645.0342159
D162: 157 | E162: ='Serial system'!P176 -> 614.629121
D163: 158 | E163: ='Serial system'!P177 -> 206.4177135
D164: 159 | E164: ='Serial system'!P178 -> 901.7810852
D165: 160 | E165: ='Serial system'!P179 -> 122.6334074
D166: 161 | E166: ='Serial system'!P180 -> 600.4981609
D167: 162 | E167: ='Serial system'!P181 -> 770.6596433
D168: 163 | E168: ='Serial system'!P182 -> 402.1426526
D169: 164 | E169: ='Serial system'!P183 -> 385.0249096
D170: 165 | E170: ='Serial system'!P184 -> 727.2798426
D171: 166 | E171: ='Serial system'!P185 -> 288.5903395
D172: 167 | E172: ='Serial system'!P186 -> 377.3625254
D173: 168 | E173: ='Serial system'!P187 -> 1342.162189
D174: 169 | E174: ='Serial system'!P188 -> 557.4753621
D175: 170 | E175: ='Serial system'!P189 -> 18.44442343
D176: 171 | E176: ='Serial system'!P190 -> 390.4367349
D177: 172 | E177: ='Serial system'!P191 -> 35.92890411
D178: 173 | E178: ='Serial system'!P192 -> 4.598275152
D179: 174 | E179: ='Serial system'!P193 -> 1637.377122
D180: 175 | E180: ='Serial system'!P194 -> 29.17295726
D181: 176 | E181: ='Serial system'!P195 -> 911.8496577
D182: 177 | E182: ='Serial system'!P196 -> 363.3744927
D183: 178 | E183: ='Serial system'!P197 -> 400.8009398
D184: 179 | E184: ='Serial system'!P198 -> 1085.617463
D185: 180 | E185: ='Serial system'!P199 -> 482.3149731
D186: 181 | E186: ='Serial system'!P200 -> 147.1985967
D187: 182 | E187: ='Serial system'!P201 -> 294.972458
D188: 183 | E188: ='Serial system'!P202 -> 568.9300866
D189: 184 | E189: ='Serial system'!P203 -> 1285.825562
D190: 185 | E190: ='Serial system'!P204 -> 133.112298
D191: 186 | E191: ='Serial system'!P205 -> 245.645782
D192: 187 | E192: ='Serial system'!P206 -> 137.8300928
D193: 188 | E193: ='Serial system'!P207 -> 1198.884009
D194: 189 | E194: ='Serial system'!P208 -> 22.47537474
D195: 190 | E195: ='Serial system'!P209 -> 557.0158143
D196: 191 | E196: ='Serial system'!P210 -> 679.8466482
D197: 192 | E197: ='Serial system'!P211 -> 189.9242311
D198: 193 | E198: ='Serial system'!P212 -> 611.4580464
D199: 194 | E199: ='Serial system'!P213 -> 294.5828555
D200: 195 | E200: ='Serial system'!P214 -> 733.2134987
D201: 196 | E201: ='Serial system'!P215 -> 721.0167138
D202: 197 | E202: ='Serial system'!P216 -> 67.99776213
... 303 more rows
